{"text_format":"3","workbook":"xlsx","n_sheets":2,"sheets":["计划表","计划表 (2)"],"not_rendered":{"defined_names":4},"read":"whole","date_system":"1900"}

{"sheet":"计划表","index":0,"n_rows":182,"n_cols":12,"rows_kept":182,"merged":[[1,0,1,11],[3,9,16,9],[17,9,29,9],[30,9,44,9],[45,9,58,9],[59,9,72,9],[73,9,85,9],[86,9,90,9],[91,9,102,9],[103,9,119,9],[120,9,124,9],[125,9,134,9],[135,9,149,9],[150,9,160,9],[161,0,165,0],[161,9,165,9],[166,0,181,0],[166,9,181,9]]}
["附件3"]
["2021年青海省面向社会公开招聘中小学教师计划表（海东市）"]
["主管部门","职位代码","事业单位","招聘岗\n位类别","岗位名称","学科专业要求","人数","学历要求","招聘范围","资格条件","学科专业素养笔试科目"," 备注 "]
["乐都区教育局",21211001,"乐都区各初中","专业技术岗位","初中语文教师","中国语言文学类（不含中国少数民族语言文学）",2,"本科及以上学历","面向全省","年龄35周岁及以下，具有相应学段及以上教师资格证书，所学专业或所取得的教师资格证任教学科要与报考学科一致。临聘教师报考年龄可放宽到45周岁。","中学语文学科专业素养","公开招聘"]
["乐都区教育局",21211002,"乐都区各初中","专业技术岗位","初中数学教师","数学类",2,"本科及以上学历","面向全省",null,"中学数学学科专业素养","公开招聘"]
["乐都区教育局",21211003,"乐都区各初中","专业技术岗位","初中物理教师","物理学类",2,"本科及以上学历","面向全省",null,"中学物理学科专业素养","公开招聘"]
["乐都区教育局",21211004,"乐都区各初中","专业技术岗位","初中化学教师","化学类",1,"本科及以上学历","面向全省",null,"中学化学学科专业素养","公开招聘"]
["乐都区教育局",21211005,"乐都区各初中","专业技术岗位","初中生物教师","生物科学类",3,"本科及以上学历","面向全省",null,"中学生物学科专业素养","公开招聘"]
["乐都区教育局",21211006,"乐都区各初中","专业技术岗位","初中政治教师","哲学类、政治学类、马克思主义理论类",2,"本科及以上学历","面向全省",null,"中学政治学科专业素养","公开招聘"]
["乐都区教育局",21211007,"乐都区各初中","专业技术岗位","初中历史教师","历史学类",2,"本科及以上学历","面向全省",null,"中学历史学科专业素养","公开招聘"]
["乐都区教育局",21211008,"乐都区各初中","专业技术岗位","初中地理教师","地理科学类",2,"本科及以上学历","面向全省",null,"中学地理学科专业素养","公开招聘"]
["乐都区教育局",21211009,"乐都区各初中","专业技术岗位","初中音乐教师","音乐与舞蹈学类",1,"本科及以上学历","面向全省",null,"中学音乐学科专业素养","公开招聘"]
["乐都区教育局",21211010,"乐都区各初中","专业技术岗位","初中体育教师","体育学类",1,"本科及以上学历","面向全省",null,"中学体育学科专业素养","公开招聘"]
["乐都区教育局",21211011,"乐都区各初中","专业技术岗位","初中美术教师","美术学类",1,"本科及以上学历","面向全省",null,"中学美术学科专业素养","公开招聘"]
["乐都区教育局",21211012,"乐都区各初中","专业技术岗位","初中信息技术教师","计算机类",1,"本科及以上学历","面向全省",null,"中学信息技术学科专业素养","公开招聘"]
["乐都区教育局",21211013,"乐都区各小学","专业技术岗位","小学语文教师","小学教育、中国语言文学类（不含中国少数民族语言文学）",4,"大专及以上学历","面向全省",null,"小学语文学科专业素养","公开招聘"]
["乐都区教育局",21211014,"乐都区各小学","专业技术岗位","小学英语教师","小学教育、外国语言文学类（英语）",2,"大专及以上学历","面向全省",null,"小学英语学科专业素养","公开招聘"]
["乐都区教育局",21211015,"乐都区各小学","专业技术岗位","小学音乐教师","小学教育、音乐与舞蹈学类",4,"大专及以上学历","面向全省","年龄35周岁及以下，具有相应学段及以上教师资格证书，所学专业或所取得的教师资格证任教学科要与报考学科一致。临聘教师报考年龄可放宽到45周岁。","小学音乐学科专业素养","公开招聘"]
["乐都区教育局",21211016,"乐都区各小学","专业技术岗位","小学体育教师","小学教育、体育学类",4,"大专及以上学历","面向全省",null,"小学体育学科专业素养","公开招聘"]
["乐都区教育局",21211017,"乐都区各小学","专业技术岗位","小学美术教师","小学教育、美术学类",4,"大专及以上学历","面向全省",null,"小学美术学科专业素养","公开招聘"]
["乐都区教育局",21211018,"乐都区各小学","专业技术岗位","小学信息技术教师","小学教育、计算机类",2,"大专及以上学历","面向全省",null,"小学信息技术学科专业素养","公开招聘"]
["平安区教育局",21212001,"平安区各小学","专业技术岗位","小学语文教师","小学教育、中国语言文学类（不含中国少数民族语言文学）",2,"大专及以上学历","面向全省",null,"小学语文学科专业素养","公开招聘"]
["平安区教育局",21212002,"平安区各小学","专业技术岗位","小学数学教师","小学教育、数学类",2,"大专及以上学历","面向全省",null,"小学数学学科专业素养","公开招聘"]
["平安区教育局",21212003,"平安区各小学","专业技术岗位","小学英语教师","小学教育、外国语言文学类（英语）",1,"大专及以上学历","面向全省",null,"小学英语学科专业素养","公开招聘"]
["平安区教育局",21212004,"平安区各小学","专业技术岗位","小学音乐教师","小学教育、音乐与舞蹈学类",1,"大专及以上学历","面向全省",null,"小学音乐学科专业素养","公开招聘"]
["平安区教育局",21212005,"平安区各小学","专业技术岗位","小学体育教师","小学教育、体育学类",1,"大专及以上学历","面向全省",null,"小学体育学科专业素养","公开招聘"]
["平安区教育局",21212006,"平安区各小学","专业技术岗位","小学科学教师","教育学类（小学教育、科学教育）、物理学类、力学类，化学类，生物科学类，地理科学类",2,"大专及以上学历","面向全省",null,"小学科学学科专业素养","公开招聘"]
["平安区教育局",21212007,"平安区各初中","专业技术岗位","初中生物教师","生物科学类",1,"本科及以上学历","面向全省",null,"中学生物学科专业素养","公开招聘"]
["平安区教育局",21212008,"平安区各初中","专业技术岗位","初中政治教师","哲学类、政治学类、马克思主义理论类",1,"本科及以上学历","面向全省",null,"中学政治学科专业素养","公开招聘"]
["平安区教育局",21212009,"平安区各初中","专业技术岗位","初中历史教师","历史学类",2,"本科及以上学历","面向全省",null,"中学历史学科专业素养","公开招聘"]
["平安区教育局",21212010,"平安区平安镇中心学校","专业技术岗位","小学语文教师1","小学教育、中国语言文学类（不含中国少数民族语言文学）",1,"本科或师范类大专毕业","面向全省","年龄30周岁及以下,具有相应学段及以上教师资格证书，所学专业或所取得的教师资格证任教学科要与报考岗位学科一致。","小学语文学科专业素养","特岗教师"]
["平安区教育局",21212011,"平安区洪水泉回族乡中心学校","专业技术岗位","小学语文教师2","小学教育、中国语言文学类（不含中国少数民族语言文学）",1,"本科或师范类大专毕业","面向全省",null,"小学语文学科专业素养","特岗教师"]
["平安区教育局",21212012,"平安区小峡镇中心学校","专业技术岗位","小学语文教师3","小学教育、中国语言文学类（不含中国少数民族语言文学）",2,"本科或师范类大专毕业","面向全省",null,"小学语文学科专业素养","特岗教师"]
["平安区教育局",21212013,"平安区石灰窑回族乡中心学校","专业技术岗位","小学语文教师4","小学教育、中国语言文学类（不含中国少数民族语言文学）",1,"本科或师范类大专毕业","面向全省",null,"小学语文学科专业素养","特岗教师"]
["平安区教育局",21212014,"平安区石灰窑回族乡中心学校","专业技术岗位","小学数学教师","小学教育、数学类",1,"本科或师范类大专毕业","面向全省",null,"小学数学学科专业素养","特岗教师"]
["平安区教育局",21212015,"平安区高铁新区学校","专业技术岗位","小学英语教师1","小学教育、外国语言文学类（英语）",1,"本科或师范类大专毕业","面向全省",null,"小学英语学科专业素养","特岗教师"]
["平安区教育局",21212016,"平安区巴藏沟回族乡中心学校","专业技术岗位","小学英语教师2","小学教育、外国语言文学类（英语）",1,"本科或师范类大专毕业","面向全省",null,"小学英语学科专业素养","特岗教师"]
["平安区教育局",21212017,"平安区洪水泉回族乡中心学校","专业技术岗位","小学英语教师3","小学教育、外国语言文学类（英语）",1,"本科或师范类大专毕业","面向全省",null,"小学英语学科专业素养","特岗教师"]
["平安区教育局",21212018,"平安区平安镇中心学校","专业技术岗位","小学音乐教师","小学教育、音乐与舞蹈学类",1,"本科或师范类大专毕业","面向全省",null,"小学音乐学科专业素养","特岗教师"]
["平安区教育局",21212019,"平安区小峡镇中心学校","专业技术岗位","小学体育教师1","小学教育、体育学类",1,"本科或师范类大专毕业","面向全省",null,"小学体育学科专业素养","特岗教师"]
["平安区教育局",21212020,"平安区巴藏沟回族乡中心学校","专业技术岗位","小学体育教师2","小学教育、体育学类",1,"本科或师范类大专毕业","面向全省",null,"小学体育学科专业素养","特岗教师"]
["平安区教育局",21212021,"平安区沙沟回族乡中心学校","专业技术岗位","初中语文教师","中国语言文学类（不含中国少数民族语言文学）",1,"本科或师范类大专毕业","面向全省",null,"中学语文学科专业素养","特岗教师"]
["平安区教育局",21212022,"平安区沙沟回族乡中心学校","专业技术岗位","初中数学教师","数学类",1,"本科或师范类大专毕业","面向全省",null,"中学数学学科专业素养","特岗教师"]
["平安区教育局",21212023,"平安区沙沟回族乡中心学校","专业技术岗位","初中英语教师","外国语言文学类（英语）",1,"本科或师范类大专毕业","面向全省",null,"中学英语学科专业素养","特岗教师"]
["平安区教育局",21212024,"平安区高铁新区学校","专业技术岗位","初中地理教师","地理科学类",1,"本科或师范类大专毕业","面向全省",null,"中学地理学科专业素养","特岗教师"]
["民和县教育局",21213001,"民和县各乡镇小学","专业技术岗位","小学语文教师1","小学教育、中国语言文学类（不含中国少数民族语言文学）",5,"大专及以上学历","面向全省","年龄35周岁及以下，具有相应学段及以上教师资格证书，所学专业或所取得的教师资格证任教学科要与报考学科一致。临聘教师报考年龄可放宽到45周岁。","小学语文学科专业素养","公开招聘"]
["民和县教育局",21213002,"民和县各乡镇小学","专业技术岗位","小学数学教师1","小学教育、数学类",4,"大专及以上学历","面向全省",null,"小学数学学科专业素养","公开招聘"]
["民和县教育局",21213003,"民和县各乡镇小学","专业技术岗位","小学英语教师1","小学教育、外国语言文学类（英语）",3,"大专及以上学历","面向全省",null,"小学英语学科专业素养","公开招聘"]
["民和县教育局",21213004,"民和县各乡镇小学","专业技术岗位","小学音乐教师","小学教育、音乐与舞蹈学类",2,"大专及以上学历","面向全省",null,"小学音乐学科专业素养","公开招聘"]
["民和县教育局",21213005,"民和县各乡镇小学","专业技术岗位","小学体育教师","小学教育、体育学类",2,"大专及以上学历","面向全省",null,"小学体育学科专业素养","公开招聘"]
["民和县教育局",21213006,"民和县各乡镇小学","专业技术岗位","小学美术教师","小学教育、美术学类",2,"大专及以上学历","面向全省",null,"小学美术学科专业素养","公开招聘"]
["民和县教育局",21213007,"民和县各乡镇小学","专业技术岗位","小学科学教师","教育学类（小学教育、科学教育）、物理学类、力学类，化学类，生物科学类，地理科学类",2,"大专及以上学历","面向全省",null,"小学科学学科专业素养","公开招聘"]
["民和县教育局",21213008,"民和县诺民小学（工作地点在海西州诺木洪）","专业技术岗位","小学语文教师2","小学教育、中国语言文学类（不含中国少数民族语言文学）",1,"大专及以上学历","面向全省",null,"小学语文学科专业素养","公开招聘"]
["民和县教育局",21213009,"民和县诺民小学（工作地点在海西州诺木洪）","专业技术岗位","小学数学教师2","小学教育、数学类",1,"大专及以上学历","面向全省",null,"小学数学学科专业素养","公开招聘"]
["民和县教育局",21213010,"民和县诺民小学（工作地点在海西州诺木洪）","专业技术岗位","小学英语教师2","小学教育、外国语言文学类（英语）",1,"大专及以上学历","面向全省",null,"小学英语学科专业素养","公开招聘"]
["民和县教育局",21213011,"民和县各乡镇初中","专业技术岗位","初中生物教师","生物科学类",1,"本科及以上学历","面向全省",null,"中学生物学科专业素养","公开招聘"]
["民和县教育局",21213012,"民和县各乡镇初中","专业技术岗位","初中政治教师","哲学类、政治学类、马克思主义理论类",1,"本科及以上学历","面向全省",null,"中学政治学科专业素养","公开招聘"]
["民和县教育局",21213013,"民和县各乡镇初中","专业技术岗位","初中物理教师","物理学类",1,"本科及以上学历","面向全省",null,"中学物理学科专业素养","公开招聘"]
["民和县教育局",21213014,"民和县各乡镇初中","专业技术岗位","初中化学教师","化学类",1,"本科及以上学历","面向全省",null,"中学化学学科专业素养","公开招聘"]
["互助县教育局",21214001,"互助县县城各高中","专业技术岗位","高中语文教师","中国语言文学类（不含中国少数民族语言文学）",4,"本科及以上学历","面向全省","年龄35周岁及以下，具有相应学段及以上教师资格证书，所学专业或所取得的教师资格证任教学科要与报考学科一致。临聘教师报考年龄可放宽到45周岁。","中学语文学科专业素养","公开招聘"]
["互助县教育局",21214002,"互助县县城各高中","专业技术岗位","高中英语教师","外国语言文学类（英语）",2,"本科及以上学历","面向全省",null,"中学英语学科专业素养","公开招聘"]
["互助县教育局",21214003,"互助县县城各高中","专业技术岗位","高中数学教师","数学类",1,"本科及以上学历","面向全省",null,"中学数学学科专业素养","公开招聘"]
["互助县教育局",21214004,"互助县县城各高中","专业技术岗位","高中物理教师","物理学类",1,"本科及以上学历","面向全省",null,"中学物理学科专业素养","公开招聘"]
["互助县教育局",21214005,"互助县县城各高中","专业技术岗位","高中化学教师","化学类",3,"本科及以上学历","面向全省",null,"中学化学学科专业素养","公开招聘"]
["互助县教育局",21214006,"互助县县城各高中","专业技术岗位","高中生物教师","生物科学类",1,"本科及以上学历","面向全省",null,"中学生物学科专业素养","公开招聘"]
["互助县教育局",21214007,"互助县县城各高中","专业技术岗位","高中政治教师","哲学类、政治学类、马克思主义理论类",2,"本科及以上学历","面向全省",null,"中学政治学科专业素养","公开招聘"]
["互助县教育局",21214008,"互助县县城各高中","专业技术岗位","高中历史教师","历史学类",1,"本科及以上学历","面向全省",null,"中学历史学科专业素养","公开招聘"]
["互助县教育局",21214009,"互助县县城各高中","专业技术岗位","高中地理教师","地理科学类",1,"本科及以上学历","面向全省",null,"中学地理学科专业素养","公开招聘"]
["互助县教育局",21214010,"互助县县城各高中","专业技术岗位","高中音乐教师","音乐与舞蹈学类",1,"本科及以上学历","面向全省",null,"中学音乐学科专业素养","公开招聘"]
["互助县教育局",21214011,"互助县县城各高中","专业技术岗位","高中体育教师","体育学类",2,"本科及以上学历","面向全省",null,"中学体育学科专业素养","公开招聘"]
["互助县教育局",21214012,"互助县县城各高中","专业技术岗位","高中美术教师","美术学类",1,"本科及以上学历","面向全省",null,"中学美术学科专业素养","公开招聘"]
["互助县教育局",21214013,"互助县县城各初中","专业技术岗位","初中语文教师","中国语言文学类（不含中国少数民族语言文学）",1,"本科及以上学历","面向全省",null,"中学语文学科专业素养","公开招聘"]
["互助县教育局",21214014,"互助县县城各初中","专业技术岗位","初中数学教师","数学类",1,"本科及以上学历","面向全省",null,"中学数学学科专业素养","公开招聘"]
["互助县教育局",21214015,"互助县县城各初中","专业技术岗位","初中英语教师","外国语言文学类（英语）",2,"本科及以上学历","面向全省","年龄35周岁及以下，具有相应学段及以上教师资格证书，所学专业或所取得的教师资格证任教学科要与报考学科一致。临聘教师报考年龄可放宽到45周岁。","中学英语学科专业素养","公开招聘"]
["互助县教育局",21214016,"互助县县城各初中","专业技术岗位","初中政治教师","哲学类、政治学类、马克思主义理论类",1,"本科及以上学历","面向全省",null,"中学政治学科专业素养","公开招聘"]
["互助县教育局",21214017,"互助县县城各初中","专业技术岗位","初中体育教师","体育学类",1,"本科及以上学历","面向全省",null,"中学体育学科专业素养","公开招聘"]
["互助县教育局",21214018,"互助县县城各初中","专业技术岗位","初中音乐教师","音乐与舞蹈学类",1,"本科及以上学历","面向全省",null,"中学音乐学科专业素养","公开招聘"]
["互助县教育局",21214019,"互助县县城各初中","专业技术岗位","初中美术教师","美术学类",1,"本科及以上学历","面向全省",null,"中学美术学科专业素养","公开招聘"]
["互助县教育局",21214020,"互助县县城各小学","专业技术岗位","小学语文教师","小学教育、中国语言文学类（不含中国少数民族语言文学）",2,"大专及以上学历","面向全省",null,"小学语文学科专业素养","公开招聘"]
["互助县教育局",21214021,"互助县县城各小学","专业技术岗位","小学数学教师","小学教育、数学类",2,"大专及以上学历","面向全省",null,"小学数学学科专业素养","公开招聘"]
["互助县教育局",21214022,"互助县县城各小学","专业技术岗位","小学英语教师","小学教育、外国语言文学类（英语）",2,"大专及以上学历","面向全省",null,"小学英语学科专业素养","公开招聘"]
["互助县教育局",21214023,"互助县县城各小学","专业技术岗位","小学道德与法治教师","小学教育、哲学类、政治学类、马克思主义理论类",2,"大专及以上学历","面向全省",null,"小学道德与法治学科专业素养","公开招聘"]
["互助县教育局",21214024,"互助县县城各小学","专业技术岗位","小学体育教师","小学教育、体育学类",2,"大专及以上学历","面向全省",null,"小学体育学科专业素养","公开招聘"]
["互助县教育局",21214025,"互助县县城各小学","专业技术岗位","小学音乐教师","小学教育、音乐与舞蹈学类",1,"大专及以上学历","面向全省",null,"小学音乐学科专业素养","公开招聘"]
["互助县教育局",21214026,"互助县县城各小学","专业技术岗位","小学美术教师","小学教育、美术学类",1,"大专及以上学历","面向全省",null,"小学美术学科专业素养","公开招聘"]
["互助县教育局",21214027,"互助县县城各小学","专业技术岗位","小学科学教师","教育学类（小学教育、科学教育）、物理学类、力学类，化学类，生物科学类，地理科学类",2,"大专及以上学历","面向全省",null,"小学科学学科专业素养","公开招聘"]
["互助县教育局",21214028,"互助县乡镇各初中","专业技术岗位","初中语文教师","中国语言文学类（不含中国少数民族语言文学）",1,"本科或师范类大专毕业","面向全省","年龄30周岁及以下,具有相应学段及以上教师资格证书，所学专业或所取得的教师资格证任教学科要与报考岗位学科一致。","中学语文学科专业素养","特岗教师"]
["互助县教育局",21214029,"互助县乡镇各初中","专业技术岗位","初中数学教师","数学类",1,"本科或师范类大专毕业","面向全省",null,"中学数学学科专业素养","特岗教师"]
["互助县教育局",21214030,"互助县加定、巴扎、松多中心学校","专业技术岗位","小学语文教师","小学教育、中国语言文学类（不含中国少数民族语言文学）",1,"本科或师范类大专毕业","面向全省",null,"小学语文学科专业素养","特岗教师"]
["互助县教育局",21214031,"互助县加定、巴扎、松多中心学校","专业技术岗位","小学数学教师","小学教育、数学类",1,"本科或师范类大专毕业","面向全省",null,"小学数学学科专业素养","特岗教师"]
["互助县教育局",21214032,"互助县加定、巴扎、松多中心学校","专业技术岗位","小学英语教师","小学教育、外国语言文学类（英语）",1,"本科或师范类大专毕业","面向全省",null,"小学英语学科专业素养","特岗教师"]
["化隆县教育局",21215001,"化隆县各高中","专业技术岗位","高中语文教师","中国语言文学类（不含中国少数民族语言文学）",7,"本科及以上学历","面向全省","年龄35周岁及以下，具有相应学段及以上教师资格证书，所学专业或所取得的教师资格证任教学科要与报考学科一致。临聘教师报考年龄可放宽到45周岁。","中学语文学科专业素养","公开招聘"]
["化隆县教育局",21215002,"化隆县各高中","专业技术岗位","高中数学教师","数学类",4,"本科及以上学历","面向全省",null,"中学数学学科专业素养","公开招聘"]
["化隆县教育局",21215003,"化隆县各高中","专业技术岗位","高中英语教师","外国语言文学类（英语）",7,"本科及以上学历","面向全省",null,"中学英语学科专业素养","公开招聘"]
["化隆县教育局",21215004,"化隆县各高中","专业技术岗位","高中物理教师","物理学类",3,"本科及以上学历","面向全省",null,"中学物理学科专业素养","公开招聘"]
["化隆县教育局",21215005,"化隆县各高中","专业技术岗位","高中化学教师","化学类",5,"本科及以上学历","面向全省",null,"中学化学学科专业素养","公开招聘"]
["化隆县教育局",21215006,"化隆县各高中","专业技术岗位","高中生物教师","生物科学类",3,"本科及以上学历","面向全省",null,"中学生物学科专业素养","公开招聘"]
["化隆县教育局",21215007,"化隆县各高中","专业技术岗位","高中政治教师","哲学类、政治学类、马克思主义理论类",2,"本科及以上学历","面向全省",null,"中学政治学科专业素养","公开招聘"]
["化隆县教育局",21215008,"化隆县各高中","专业技术岗位","高中历史教师","历史学类",1,"本科及以上学历","面向全省",null,"中学历史学科专业素养","公开招聘"]
["化隆县教育局",21215009,"化隆县各高中","专业技术岗位","高中地理教师","地理科学类",3,"本科及以上学历","面向全省",null,"中学地理学科专业素养","公开招聘"]
["化隆县教育局",21215010,"化隆县各乡镇初中","专业技术岗位","初中语文教师","中国语言文学类（不含中国少数民族语言文学）",6,"本科及以上学历","面向全省",null,"中学语文学科专业素养","公开招聘"]
["化隆县教育局",21215011,"化隆县各乡镇初中","专业技术岗位","初中数学教师","数学类",6,"本科及以上学历","面向全省",null,"中学数学学科专业素养","公开招聘"]
["化隆县教育局",21215012,"化隆县各乡镇初中","专业技术岗位","初中英语教师","外国语言文学类（英语）",6,"本科及以上学历","面向全省",null,"中学英语学科专业素养","公开招聘"]
["化隆县教育局",21215013,"化隆县各乡镇初中","专业技术岗位","初中物理教师","物理学类",3,"本科及以上学历","面向全省","年龄35周岁及以下，具有相应学段及以上教师资格证书，所学专业或所取得的教师资格证任教学科要与报考学科一致。临聘教师报考年龄可放宽到45周岁。","中学物理学科专业素养","公开招聘"]
["化隆县教育局",21215014,"化隆县各乡镇初中","专业技术岗位","初中化学教师","化学类",3,"本科及以上学历","面向全省",null,"中学化学学科专业素养","公开招聘"]
["化隆县教育局",21215015,"化隆县各乡镇初中","专业技术岗位","初中生物教师","生物科学类",3,"本科及以上学历","面向全省",null,"中学生物学科专业素养","公开招聘"]
["化隆县教育局",21215016,"化隆县各乡镇初中","专业技术岗位","初中政治教师","哲学类、政治学类、马克思主义理论类",3,"本科及以上学历","面向全省",null,"中学政治学科专业素养","公开招聘"]
["化隆县教育局",21215017,"化隆县各乡镇初中","专业技术岗位","初中历史教师","历史学类",3,"本科及以上学历","面向全省",null,"中学历史学科专业素养","公开招聘"]
["化隆县教育局",21215018,"化隆县各乡镇初中","专业技术岗位","初中地理教师","地理科学类",4,"本科及以上学历","面向全省",null,"中学地理学科专业素养","公开招聘"]
["化隆县教育局",21215019,"化隆县各乡镇初中","专业技术岗位","初中音乐教师","音乐与舞蹈学类",1,"本科及以上学历","面向全省",null,"中学音乐学科专业素养","公开招聘"]
["化隆县教育局",21215020,"化隆县各乡镇初中","专业技术岗位","初中体育教师","体育学类",1,"本科及以上学历","面向全省",null,"中学体育学科专业素养","公开招聘"]
["化隆县教育局",21215021,"化隆县各乡镇初中","专业技术岗位","初中美术教师","美术学类",1,"本科及以上学历","面向全省",null,"中学美术学科专业素养","公开招聘"]
["化隆县教育局",21215022,"化隆县各乡镇小学","专业技术岗位","小学语文教师","小学教育、中国语言文学类（不含中国少数民族语言文学）",9,"大专及以上学历","面向全省",null,"小学语文学科专业素养","公开招聘"]
["化隆县教育局",21215023,"化隆县各乡镇小学","专业技术岗位","小学数学教师","小学教育、数学类",9,"大专及以上学历","面向全省",null,"小学数学学科专业素养","公开招聘"]
["化隆县教育局",21215024,"化隆县各乡镇小学","专业技术岗位","小学英语教师","小学教育、外国语言文学类（英语）",5,"大专及以上学历","面向全省",null,"小学英语学科专业素养","公开招聘"]
["化隆县教育局",21215025,"化隆县各乡镇小学","专业技术岗位","小学道德与法治教师","小学教育、哲学类、政治学类、马克思主义理论类",2,"大专及以上学历","面向全省",null,"小学道德与法治学科专业素养","公开招聘"]
["化隆县教育局",21215026,"化隆县各乡镇小学","专业技术岗位","小学音乐教师","小学教育、音乐与舞蹈学类",4,"大专及以上学历","面向全省",null,"小学音乐学科专业素养","公开招聘"]
["化隆县教育局",21215027,"化隆县各乡镇小学","专业技术岗位","小学体育教师","小学教育、体育学类",4,"大专及以上学历","面向全省",null,"小学体育学科专业素养","公开招聘"]
["化隆县教育局",21215028,"化隆县各乡镇小学","专业技术岗位","小学美术教师","小学教育、美术学类",5,"大专及以上学历","面向全省",null,"小学美术学科专业素养","公开招聘"]
["化隆县教育局",21215029,"化隆县各乡镇小学","专业技术岗位","小学科学教师","教育学类（小学教育、科学教育）、物理学类、力学类，化学类，生物科学类，地理科学类",3,"大专及以上学历","面向全省",null,"小学科学学科专业素养","公开招聘"]
["化隆县教育局",21215030,"化隆县各乡镇小学","专业技术岗位","小学语文教师","小学教育、中国语言文学类（不含中国少数民族语言文学）",2,"本科或师范类大专毕业","面向全省","年龄30周岁及以下,具有相应学段及以上教师资格证书，所学专业或所取得的教师资格证任教学科要与报考岗位学科一致。","小学语文学科专业素养","特岗教师"]
["化隆县教育局",21215031,"化隆县各乡镇小学","专业技术岗位","小学数学教师","小学教育、数学类",2,"本科或师范类大专毕业","面向全省",null,"小学数学学科专业素养","特岗教师"]
["化隆县教育局",21215032,"化隆县各乡镇小学","专业技术岗位","小学英语教师","小学教育、外国语言文学类（英语）",2,"本科或师范类大专毕业","面向全省",null,"小学英语学科专业素养","特岗教师"]
["化隆县教育局",21215033,"化隆县各乡镇小学","专业技术岗位","小学道德与法治教师","小学教育、哲学类、政治学类、马克思主义理论类",2,"本科或师范类大专毕业","面向全省",null,"小学道德与法治学科专业素养","特岗教师"]
["化隆县教育局",21215034,"化隆县各乡镇小学","专业技术岗位","小学音乐教师","小学教育、音乐与舞蹈学类",2,"本科或师范类大专毕业","面向全省",null,"小学音乐学科专业素养","特岗教师"]
["循化县教育局",21216001,"循化县各高中","专业技术岗位","高中数学教师","数学类",8,"本科及以上学历","面向全省","年龄35周岁及以下，具有相应学段及以上教师资格证书，所学专业或所取得的教师资格证任教学科要与报考学科一致。临聘教师报考年龄可放宽到45周岁。","中学数学学科专业素养","公开招聘"]
["循化县教育局",21216002,"循化县各高中","专业技术岗位","高中英语教师","外国语言文学类（英语）",7,"本科及以上学历","面向全省",null,"中学英语学科专业素养","公开招聘"]
["循化县教育局",21216003,"循化县各高中","专业技术岗位","高中地理教师","地理科学类",3,"本科及以上学历","面向全省",null,"中学地理学科专业素养","公开招聘"]
["循化县教育局",21216004,"循化县各高中","专业技术岗位","高中语文教师","中国语言文学类（不含中国少数民族语言文学）",6,"本科及以上学历","面向全省",null,"中学语文学科专业素养","公开招聘"]
["循化县教育局",21216005,"循化县各高中","专业技术岗位","高中物理教师","物理学类",3,"本科及以上学历","面向全省",null,"中学物理学科专业素养","公开招聘"]
["循化县教育局",21216006,"循化县各高中","专业技术岗位","高中化学教师","化学类",5,"本科及以上学历","面向全省",null,"中学化学学科专业素养","公开招聘"]
["循化县教育局",21216007,"循化县各高中","专业技术岗位","高中历史教师","历史学类",2,"本科及以上学历","面向全省",null,"中学历史学科专业素养","公开招聘"]
["循化县教育局",21216008,"循化县各高中","专业技术岗位","高中政治教师","哲学类、政治学类、马克思主义理论类",2,"本科及以上学历","面向全省",null,"中学政治学科专业素养","公开招聘"]
["循化县教育局",21216009,"循化县各高中","专业技术岗位","高中生物教师","生物科学类",5,"本科及以上学历","面向全省",null,"中学生物学科专业素养","公开招聘"]
["循化县教育局",21216010,"循化县各高中","专业技术岗位","高中体育教师","体育学类",1,"本科及以上学历","面向全省",null,"中学体育学科专业素养","公开招聘"]
["循化县教育局",21216011,"循化县各高中","专业技术岗位","高中信息技术教师","计算机类",1,"本科及以上学历","面向全省","年龄35周岁及以下，具有相应学段及以上教师资格证书，所学专业或所取得的教师资格证任教学科要与报考学科一致。临聘教师报考年龄可放宽到45周岁。","中学信息技术学科专业素养","公开招聘"]
["循化县教育局",21216012,"循化县各乡镇初中","专业技术岗位","初中语文教师","中国语言文学类（不含中国少数民族语言文学）",1,"本科及以上学历","面向全省",null,"中学语文学科专业素养","公开招聘"]
["循化县教育局",21216013,"循化县各乡镇初中","专业技术岗位","初中数学教师","数学类",2,"本科及以上学历","面向全省",null,"中学数学学科专业素养","公开招聘"]
["循化县教育局",21216014,"循化县各乡镇初中","专业技术岗位","初中历史教师","历史学类",1,"本科及以上学历","面向全省",null,"中学历史学科专业素养","公开招聘"]
["循化县教育局",21216015,"循化县各乡镇初中","专业技术岗位","初中政治教师","哲学类、政治学类、马克思主义理论类",1,"本科及以上学历","面向全省",null,"中学政治学科专业素养","公开招聘"]
["循化县教育局",21216016,"循化县各乡镇初中","专业技术岗位","初中化学教师","化学类",1,"本科及以上学历","面向全省",null,"中学化学学科专业素养","公开招聘"]
["循化县教育局",21216017,"循化县各乡镇初中","专业技术岗位","初中生物教师","生物科学类",1,"本科及以上学历","面向全省",null,"中学生物学科专业素养","公开招聘"]
["循化县教育局",21216018,"循化县各乡镇初中","专业技术岗位","初中英语教师","外国语言文学类（英语）",1,"本科及以上学历","面向全省",null,"中学英语学科专业素养","公开招聘"]
["循化县教育局",21216019,"循化县各乡镇初中","专业技术岗位","初中物理教师","物理学类",1,"本科及以上学历","面向全省",null,"中学物理学科专业素养","公开招聘"]
["循化县教育局",21216020,"循化县各乡镇初中","专业技术岗位","初中地理教师","地理科学类",1,"本科及以上学历","面向全省",null,"中学地理学科专业素养","公开招聘"]
["循化县教育局",21216021,"循化县各乡镇初中","专业技术岗位","初中体育教师","体育学类",1,"本科及以上学历","面向全省",null,"中学体育学科专业素养","公开招聘"]
["循化县教育局",21216022,"循化循各乡镇小学","专业技术岗位","小学语文教师","小学教育、中国语言文学类（不含中国少数民族语言文学）",2,"大专及以上学历","面向全省",null,"小学语文学科专业素养","公开招聘"]
["循化县教育局",21216023,"循化循各乡镇小学","专业技术岗位","小学数学教师","小学教育、数学类",1,"大专及以上学历","面向全省",null,"小学数学学科专业素养","公开招聘"]
["循化县教育局",21216024,"循化循各乡镇小学","专业技术岗位","小学英语教师","小学教育、外国语言文学类（英语）",1,"大专及以上学历","面向全省",null,"小学英语学科专业素养","公开招聘"]
["循化县教育局",21216025,"循化循各乡镇小学","专业技术岗位","小学道德与法治教师","小学教育、哲学类、政治学类、马克思主义理论类",1,"大专及以上学历","面向全省",null,"小学道德与法治学科专业素养","公开招聘"]
["循化县教育局",21216026,"循化县各乡镇初中","专业技术岗位","初中语文教师","中国语言文学类（不含中国少数民族语言文学）",2,"本科或师范类大专毕业","面向全省","年龄30周岁及以下,具有相应学段及以上教师资格证书，所学专业或所取得的教师资格证任教学科要与报考岗位学科一致。","中学语文学科专业素养","特岗教师"]
["循化县教育局",21216027,"循化县各乡镇初中","专业技术岗位","初中数学教师","数学类",3,"本科或师范类大专毕业","面向全省",null,"中学数学学科专业素养","特岗教师"]
["循化县教育局",21216028,"循化县各乡镇初中","专业技术岗位","初中历史教师","历史学类",1,"本科或师范类大专毕业","面向全省",null,"中学历史学科专业素养","特岗教师"]
["循化县教育局",21216029,"循化县各乡镇初中","专业技术岗位","初中政治教师","哲学类、政治学类、马克思主义理论类",1,"本科或师范类大专毕业","面向全省",null,"中学政治学科专业素养","特岗教师"]
["循化县教育局",21216030,"循化县各乡镇初中","专业技术岗位","初中英语教师","外国语言文学类（英语）",2,"本科或师范类大专毕业","面向全省",null,"中学英语学科专业素养","特岗教师"]
["循化县教育局",21216031,"循化县各乡镇初中","专业技术岗位","初中地理教师","地理科学类",1,"本科或师范类大专毕业","面向全省",null,"中学地理学科专业素养","特岗教师"]
["循化县教育局",21216032,"循化循各乡镇小学","专业技术岗位","小学语文教师","小学教育、中国语言文学类（不含中国少数民族语言文学）",1,"本科或师范类大专毕业","面向全省",null,"小学语文学科专业素养","特岗教师"]
["循化县教育局",21216033,"循化循各乡镇小学","专业技术岗位","小学数学教师","小学教育、数学类",1,"本科或师范类大专毕业","面向全省",null,"小学数学学科专业素养","特岗教师"]
["循化县教育局",21216034,"循化循各乡镇小学","专业技术岗位","小学英语教师","小学教育、外国语言文学类（英语）",1,"本科或师范类大专毕业","面向全省",null,"小学英语学科专业素养","特岗教师"]
["循化县教育局",21216035,"循化循各乡镇小学","专业技术岗位","小学音乐教师","小学教育、音乐与舞蹈学类",1,"本科或师范类大专毕业","面向全省",null,"小学音乐学科专业素养","特岗教师"]
["循化县教育局",21216036,"循化循各乡镇小学","专业技术岗位","小学体育教师","小学教育、体育学类",1,"本科或师范类大专毕业","面向全省",null,"小学体育学科专业素养","特岗教师"]
["面向大学生村官、志愿服务西部计划（含青南计划、基层青年专项）、“三支一扶”计划等三类基层服务项目生、大学生退役士兵",21217001,"乐都区各小学","专业技术岗位","小学数学教师","小学教育、数学类",2,"大专及以上学历","面向全省","年龄35周岁及以下，具有相应学段及以上教师资格证书，所学专业或所取得的教师资格证任教学科要与报考学科一致。","小学数学学科专业素养","定向岗位"]
[null,21217002,"乐都区各小学","专业技术岗位","小学道德与法治教师","小学教育、哲学类、政治学类、马克思主义理论类",2,"大专及以上学历","面向全省",null,"小学道德与法治学科专业素养","定向岗位"]
[null,21217003,"平安区各小学","专业技术岗位","小学数学教师","小学教育、数学类",1,"大专及以上学历","面向全省",null,"小学数学学科专业素养","定向岗位"]
[null,21217004,"民和县各乡镇小学","专业技术岗位","小学语文教师","小学教育、中国语言文学类（不含中国少数民族语言文学）",1,"大专及以上学历","面向全省",null,"小学语文学科专业素养","定向岗位"]
[null,21217005,"民和县各乡镇小学","专业技术岗位","小学数学教师","小学教育、数学类",2,"大专及以上学历","面向全省",null,"小学数学学科专业素养","定向岗位"]
["面向大学生村官、志愿服务西部计划（含青南计划、基层青年专项）、“三支一扶”计划等三类基层服务项目生、大学生退役士兵",21217006,"互助县县城各小学","专业技术岗位","小学语文教师","小学教育、中国语言文学类（不含中国少数民族语言文学）",1,"大专及以上学历","面向全省","年龄35周岁及以下，具有相应学段及以上教师资格证书，所学专业或所取得的教师资格证任教学科要与报考学科一致。","小学语文学科专业素养","定向岗位"]
[null,21217007,"互助县县城各小学","专业技术岗位","小学数学教师","小学教育、数学类",1,"大专及以上学历","面向全省",null,"小学数学学科专业素养","定向岗位"]
[null,21217008,"互助县县城各小学","专业技术岗位","小学英语教师","小学教育、外国语言文学类（英语）",1,"大专及以上学历","面向全省",null,"小学英语学科专业素养","定向岗位"]
[null,21217009,"化隆县各乡镇小学","专业技术岗位","小学语文教师","小学教育、中国语言文学类（不含中国少数民族语言文学）",4,"大专及以上学历","面向全省",null,"小学语文学科专业素养","定向岗位"]
[null,21217010,"化隆县各乡镇小学","专业技术岗位","小学数学教师","小学教育、数学类",4,"大专及以上学历","面向全省",null,"小学数学学科专业素养","定向岗位"]
[null,21217011,"化隆县各乡镇小学","专业技术岗位","小学音乐教师","小学教育、音乐与舞蹈学类",1,"大专及以上学历","面向全省",null,"小学音乐学科专业素养","定向岗位"]
[null,21217012,"化隆县各乡镇小学","专业技术岗位","小学体育教师","小学教育、体育学类",1,"大专及以上学历","面向全省",null,"小学体育学科专业素养","定向岗位"]
[null,21217013,"化隆县各乡镇小学","专业技术岗位","小学美术教师","小学教育、美术学类",1,"大专及以上学历","面向全省",null,"小学美术学科专业素养","定向岗位"]
[null,21217014,"化隆县各乡镇小学","专业技术岗位","小学科学教师","教育学类（小学教育、科学教育）、物理学类、力学类，化学类，生物科学类，地理科学类",1,"大专及以上学历","面向全省",null,"小学科学学科专业素养","定向岗位"]
[null,21217015,"化隆县各乡镇小学","专业技术岗位","小学英语教师","小学教育、外国语言文学类（英语）",2,"大专及以上学历","面向全省",null,"小学英语学科专业素养","定向岗位"]
[null,21217016,"循化县各高中","专业技术岗位","高中体育教师","体育学类",1,"本科及以上学历","面向全省",null,"中学体育学科专业素养","定向岗位"]
[null,21217017,"循化县各高中","专业技术岗位","高中信息技术教师","计算机类",1,"本科及以上学历","面向全省",null,"中学信息技术学科专业素养","定向岗位"]
[null,21217018,"循化县各乡镇初中","专业技术岗位","初中体育教师","体育学类",1,"本科及以上学历","面向全省",null,"中学体育学科专业素养","定向岗位"]
[null,21217019,"循化循各乡镇小学","专业技术岗位","小学语文教师","小学教育、中国语言文学类（不含中国少数民族语言文学）",1,"大专及以上学历","面向全省",null,"小学语文学科专业素养","定向岗位"]
[null,21217020,"循化循各乡镇小学","专业技术岗位","小学数学教师","小学教育、数学类",1,"大专及以上学历","面向全省",null,"小学数学学科专业素养","定向岗位"]
[null,21217021,"循化循各乡镇小学","专业技术岗位","小学道德与法治教师","小学教育、哲学类、政治学类、马克思主义理论类",1,"大专及以上学历","面向全省",null,"小学道德与法治学科专业素养","定向岗位"]

{"sheet":"计划表 (2)","index":1,"n_rows":182,"n_cols":34,"rows_kept":182,"hidden":true,"merged":[[1,0,1,11],[1,23,1,33],[3,9,16,9],[3,31,16,31],[17,9,29,9],[17,31,29,31],[30,9,44,9],[30,31,44,31],[45,9,58,9],[45,31,58,31],[59,9,72,9],[59,31,72,31],[73,9,85,9],[73,31,85,31],[86,9,90,9],[86,31,90,31],[91,9,102,9],[91,31,102,31],[103,9,119,9],[103,31,119,31],[120,9,124,9],[120,31,124,31],[125,9,134,9],[125,31,134,31],[135,9,149,9],[135,31,149,31],[150,9,160,9],[150,31,160,31],[161,0,165,0],[161,9,165,9],[161,23,181,23],[161,31,165,31],[166,0,181,0],[166,9,181,9],[166,31,181,31]]}
["附件3",{"$nulls":22},"附件3-1"]
["2021年青海省面向社会公开招聘中小学教师计划表（海东市）",{"$nulls":22},"2021年青海省面向社会公开招聘中小学教师计划表（海东市）"]
["主管部门","职位代码","事业单位","招聘岗\n位类别","岗位名称","学科专业要求","人数","学历要求","招聘范围","资格条件","学科专业素养笔试科目"," 备注 ",{"$nulls":11},"主管部门","事业单位","招聘岗\n位类别","岗位名称","学科专业要求","人数","学历要求","招聘范围","资格条件","学科专业素养笔试科目"," 备注 "]
["乐都区教育局",21211001,"乐都区各初中","专业技术岗位","初中语文教师","中国语言文学类（不含中国少数民族语言文学）",2,"本科及以上学历","面向全省","年龄35周岁及以下，具有相应学段及以上教师资格证书，所学专业或所取得的教师资格证任教学科要与报考学科一致。临聘教师报考年龄可放宽到45周岁。","中学语文学科专业素养","公开招聘",null,{"$f":"EXACT(E4,AA4)","v":true},true,true,true,true,true,true,true,null,null,"乐都区教育局","乐都区各初中","专业技术岗位","初中语文教师","中国语言文学类（不含中国少数民族语言文学）",2,"本科及以上学历","面向全省","年龄35周岁及以下，具有相应学段及以上教师资格证书，所学专业或所取得的教师资格证任教学科要与报考学科一致。临聘教师报考年龄可放宽到45周岁。","中学语文学科专业素养","公开招聘"]
["乐都区教育局",21211002,"乐都区各初中","专业技术岗位","初中数学教师","数学类",2,"本科及以上学历","面向全省",null,"中学数学学科专业素养","公开招聘",null,{"$f":"EXACT(E5,AA5)","v":true},true,true,true,true,true,true,true,null,null,"乐都区教育局","乐都区各初中","专业技术岗位","初中数学教师","数学类",2,"本科及以上学历","面向全省",null,"中学数学学科专业素养","公开招聘"]
["乐都区教育局",21211003,"乐都区各初中","专业技术岗位","初中物理教师","物理学类",2,"本科及以上学历","面向全省",null,"中学物理学科专业素养","公开招聘",null,{"$f":"EXACT(E6,AA6)","v":true},true,true,true,true,true,true,true,null,null,"乐都区教育局","乐都区各初中","专业技术岗位","初中物理教师","物理学类",2,"本科及以上学历","面向全省",null,"中学物理学科专业素养","公开招聘"]
["乐都区教育局",21211004,"乐都区各初中","专业技术岗位","初中化学教师","化学类",1,"本科及以上学历","面向全省",null,"中学化学学科专业素养","公开招聘",null,{"$f":"EXACT(E7,AA7)","v":true},true,true,true,true,true,true,true,null,null,"乐都区教育局","乐都区各初中","专业技术岗位","初中化学教师","化学类",1,"本科及以上学历","面向全省",null,"中学化学学科专业素养","公开招聘"]
["乐都区教育局",21211005,"乐都区各初中","专业技术岗位","初中生物教师","生物科学类",3,"本科及以上学历","面向全省",null,"中学生物学科专业素养","公开招聘",null,{"$f":"EXACT(E8,AA8)","v":true},true,true,true,true,true,true,true,null,null,"乐都区教育局","乐都区各初中","专业技术岗位","初中生物教师","生物科学类",3,"本科及以上学历","面向全省",null,"中学生物学科专业素养","公开招聘"]
["乐都区教育局",21211006,"乐都区各初中","专业技术岗位","初中政治教师","哲学类、政治学类、马克思主义理论类",2,"本科及以上学历","面向全省",null,"中学政治学科专业素养","公开招聘",null,{"$f":"EXACT(E9,AA9)","v":true},true,true,true,true,true,true,true,null,null,"乐都区教育局","乐都区各初中","专业技术岗位","初中政治教师","哲学类、政治学类、马克思主义理论类",2,"本科及以上学历","面向全省",null,"中学政治学科专业素养","公开招聘"]
["乐都区教育局",21211007,"乐都区各初中","专业技术岗位","初中历史教师","历史学类",2,"本科及以上学历","面向全省",null,"中学历史学科专业素养","公开招聘",null,{"$f":"EXACT(E10,AA10)","v":true},true,true,true,true,true,true,true,null,null,"乐都区教育局","乐都区各初中","专业技术岗位","初中历史教师","历史学类",2,"本科及以上学历","面向全省",null,"中学历史学科专业素养","公开招聘"]
["乐都区教育局",21211008,"乐都区各初中","专业技术岗位","初中地理教师","地理科学类",2,"本科及以上学历","面向全省",null,"中学地理学科专业素养","公开招聘",null,{"$f":"EXACT(E11,AA11)","v":true},true,true,true,true,true,true,true,null,null,"乐都区教育局","乐都区各初中","专业技术岗位","初中地理教师","地理科学类",2,"本科及以上学历","面向全省",null,"中学地理学科专业素养","公开招聘"]
["乐都区教育局",21211009,"乐都区各初中","专业技术岗位","初中音乐教师","音乐与舞蹈学类",1,"本科及以上学历","面向全省",null,"中学音乐学科专业素养","公开招聘",null,{"$f":"EXACT(E12,AA12)","v":true},true,true,true,true,true,true,true,null,null,"乐都区教育局","乐都区各初中","专业技术岗位","初中音乐教师","音乐与舞蹈学类",1,"本科及以上学历","面向全省",null,"中学音乐学科专业素养","公开招聘"]
["乐都区教育局",21211010,"乐都区各初中","专业技术岗位","初中体育教师","体育学类",1,"本科及以上学历","面向全省",null,"中学体育学科专业素养","公开招聘",null,{"$f":"EXACT(E13,AA13)","v":true},true,true,true,true,true,true,true,null,null,"乐都区教育局","乐都区各初中","专业技术岗位","初中体育教师","体育学类",1,"本科及以上学历","面向全省",null,"中学体育学科专业素养","公开招聘"]
["乐都区教育局",21211011,"乐都区各初中","专业技术岗位","初中美术教师","美术学类",1,"本科及以上学历","面向全省",null,"中学美术学科专业素养","公开招聘",null,{"$f":"EXACT(E14,AA14)","v":true},true,true,true,true,true,true,true,null,null,"乐都区教育局","乐都区各初中","专业技术岗位","初中美术教师","美术学类",1,"本科及以上学历","面向全省",null,"中学美术学科专业素养","公开招聘"]
["乐都区教育局",21211012,"乐都区各初中","专业技术岗位","初中信息技术教师","计算机类",1,"本科及以上学历","面向全省",null,"中学信息技术学科专业素养","公开招聘",null,{"$f":"EXACT(E15,AA15)","v":true},true,true,true,true,true,true,true,null,null,"乐都区教育局","乐都区各初中","专业技术岗位","初中信息技术教师","计算机类",1,"本科及以上学历","面向全省",null,"中学信息技术学科专业素养","公开招聘"]
["乐都区教育局",21211013,"乐都区各小学","专业技术岗位","小学语文教师","小学教育、中国语言文学类（不含中国少数民族语言文学）",4,"大专及以上学历","面向全省",null,"小学语文学科专业素养","公开招聘",null,{"$f":"EXACT(E16,AA16)","v":true},true,true,true,true,true,true,true,null,null,"乐都区教育局","乐都区各小学","专业技术岗位","小学语文教师","小学教育、中国语言文学类（不含中国少数民族语言文学）",4,"大专及以上学历","面向全省",null,"小学语文学科专业素养","公开招聘"]
["乐都区教育局",21211014,"乐都区各小学","专业技术岗位","小学英语教师","小学教育、外国语言文学类（英语）",2,"大专及以上学历","面向全省",null,"小学英语学科专业素养","公开招聘",null,{"$f":"EXACT(E17,AA17)","v":true},true,true,true,true,true,true,true,null,null,"乐都区教育局","乐都区各小学","专业技术岗位","小学英语教师","小学教育、外国语言文学类（英语）",2,"大专及以上学历","面向全省",null,"小学英语学科专业素养","公开招聘"]
["乐都区教育局",21211015,"乐都区各小学","专业技术岗位","小学音乐教师","小学教育、音乐与舞蹈学类",4,"大专及以上学历","面向全省","年龄35周岁及以下，具有相应学段及以上教师资格证书，所学专业或所取得的教师资格证任教学科要与报考学科一致。临聘教师报考年龄可放宽到45周岁。","小学音乐学科专业素养","公开招聘",null,{"$f":"EXACT(E18,AA18)","v":true},true,true,true,true,true,true,true,null,null,"乐都区教育局","乐都区各小学","专业技术岗位","小学音乐教师","小学教育、音乐与舞蹈学类",4,"大专及以上学历","面向全省","年龄35周岁及以下，具有相应学段及以上教师资格证书，所学专业或所取得的教师资格证任教学科要与报考学科一致。临聘教师报考年龄可放宽到45周岁。","小学音乐学科专业素养","公开招聘"]
["乐都区教育局",21211016,"乐都区各小学","专业技术岗位","小学体育教师","小学教育、体育学类",4,"大专及以上学历","面向全省",null,"小学体育学科专业素养","公开招聘",null,{"$f":"EXACT(E19,AA19)","v":true},true,true,true,true,true,true,true,null,null,"乐都区教育局","乐都区各小学","专业技术岗位","小学体育教师","小学教育、体育学类",4,"大专及以上学历","面向全省",null,"小学体育学科专业素养","公开招聘"]
["乐都区教育局",21211017,"乐都区各小学","专业技术岗位","小学美术教师","小学教育、美术学类",4,"大专及以上学历","面向全省",null,"小学美术学科专业素养","公开招聘",null,{"$f":"EXACT(E20,AA20)","v":true},true,true,true,true,true,true,true,null,null,"乐都区教育局","乐都区各小学","专业技术岗位","小学美术教师","小学教育、美术学类",4,"大专及以上学历","面向全省",null,"小学美术学科专业素养","公开招聘"]
["乐都区教育局",21211018,"乐都区各小学","专业技术岗位","小学信息技术教师","小学教育、计算机类",2,"大专及以上学历","面向全省",null,"小学信息技术学科专业素养","公开招聘",null,{"$f":"EXACT(E21,AA21)","v":true},true,true,true,true,true,true,true,null,null,"乐都区教育局","乐都区各小学","专业技术岗位","小学信息技术教师","小学教育、计算机类",2,"大专及以上学历","面向全省",null,"小学信息技术学科专业素养","公开招聘"]
["平安区教育局",21212001,"平安区各小学","专业技术岗位","小学语文教师","小学教育、中国语言文学类（不含中国少数民族语言文学）",2,"大专及以上学历","面向全省",null,"小学语文学科专业素养","公开招聘",null,{"$f":"EXACT(E22,AA22)","v":true},true,true,true,true,true,true,true,null,null,"平安区教育局","平安区各小学","专业技术岗位","小学语文教师","小学教育、中国语言文学类（不含中国少数民族语言文学）",2,"大专及以上学历","面向全省",null,"小学语文学科专业素养","公开招聘"]
["平安区教育局",21212002,"平安区各小学","专业技术岗位","小学数学教师","小学教育、数学类",2,"大专及以上学历","面向全省",null,"小学数学学科专业素养","公开招聘",null,{"$f":"EXACT(E23,AA23)","v":true},true,true,true,true,true,true,true,null,null,"平安区教育局","平安区各小学","专业技术岗位","小学数学教师","小学教育、数学类",2,"大专及以上学历","面向全省",null,"小学数学学科专业素养","公开招聘"]
["平安区教育局",21212003,"平安区各小学","专业技术岗位","小学英语教师","小学教育、外国语言文学类（英语）",1,"大专及以上学历","面向全省",null,"小学英语学科专业素养","公开招聘",null,{"$f":"EXACT(E24,AA24)","v":true},true,true,true,true,true,true,true,null,null,"平安区教育局","平安区各小学","专业技术岗位","小学英语教师","小学教育、外国语言文学类（英语）",1,"大专及以上学历","面向全省",null,"小学英语学科专业素养","公开招聘"]
["平安区教育局",21212004,"平安区各小学","专业技术岗位","小学音乐教师","小学教育、音乐与舞蹈学类",1,"大专及以上学历","面向全省",null,"小学音乐学科专业素养","公开招聘",null,{"$f":"EXACT(E25,AA25)","v":true},true,true,true,true,true,true,true,null,null,"平安区教育局","平安区各小学","专业技术岗位","小学音乐教师","小学教育、音乐与舞蹈学类",1,"大专及以上学历","面向全省",null,"小学音乐学科专业素养","公开招聘"]
["平安区教育局",21212005,"平安区各小学","专业技术岗位","小学体育教师","小学教育、体育学类",1,"大专及以上学历","面向全省",null,"小学体育学科专业素养","公开招聘",null,{"$f":"EXACT(E26,AA26)","v":true},true,true,true,true,true,true,true,null,null,"平安区教育局","平安区各小学","专业技术岗位","小学体育教师","小学教育、体育学类",1,"大专及以上学历","面向全省",null,"小学体育学科专业素养","公开招聘"]
["平安区教育局",21212006,"平安区各小学","专业技术岗位","小学科学教师","教育学类（小学教育、科学教育）、物理学类、力学类，化学类，生物科学类，地理科学类",2,"大专及以上学历","面向全省",null,"小学科学学科专业素养","公开招聘",null,{"$f":"EXACT(E27,AA27)","v":true},true,true,true,true,true,true,true,null,null,"平安区教育局","平安区各小学","专业技术岗位","小学科学教师","教育学类（小学教育、科学教育）、物理学类、力学类，化学类，生物科学类，地理科学类",2,"大专及以上学历","面向全省",null,"小学科学学科专业素养","公开招聘"]
["平安区教育局",21212007,"平安区各初中","专业技术岗位","初中生物教师","生物科学类",1,"本科及以上学历","面向全省",null,"中学生物学科专业素养","公开招聘",null,{"$f":"EXACT(E28,AA28)","v":true},true,true,true,true,true,true,true,null,null,"平安区教育局","平安区各初中","专业技术岗位","初中生物教师","生物科学类",1,"本科及以上学历","面向全省",null,"中学生物学科专业素养","公开招聘"]
["平安区教育局",21212008,"平安区各初中","专业技术岗位","初中政治教师","哲学类、政治学类、马克思主义理论类",1,"本科及以上学历","面向全省",null,"中学政治学科专业素养","公开招聘",null,{"$f":"EXACT(E29,AA29)","v":true},true,true,true,true,true,true,true,null,null,"平安区教育局","平安区各初中","专业技术岗位","初中政治教师","哲学类、政治学类、马克思主义理论类",1,"本科及以上学历","面向全省",null,"中学政治学科专业素养","公开招聘"]
["平安区教育局",21212009,"平安区各初中","专业技术岗位","初中历史教师","历史学类",2,"本科及以上学历","面向全省",null,"中学历史学科专业素养","公开招聘",null,{"$f":"EXACT(E30,AA30)","v":true},true,true,true,true,true,true,true,null,null,"平安区教育局","平安区各初中","专业技术岗位","初中历史教师","历史学类",2,"本科及以上学历","面向全省",null,"中学历史学科专业素养","公开招聘"]
["平安区教育局",21212010,"平安区平安镇中心学校","专业技术岗位","小学语文教师1","小学教育、中国语言文学类（不含中国少数民族语言文学）",1,"本科或师范类大专毕业","面向全省","年龄30周岁及以下,具有相应学段及以上教师资格证书，所学专业或所取得的教师资格证任教学科要与报考岗位学科一致。","小学语文学科专业素养","特岗教师",null,{"$f":"EXACT(E31,AA31)","v":true},true,true,true,true,true,true,true,null,null,"平安区教育局","平安区平安镇中心学校","专业技术岗位","小学语文教师1","小学教育、中国语言文学类（不含中国少数民族语言文学）",1,"本科或师范类大专毕业","面向全省","年龄30周岁及以下,具有相应学段及以上教师资格证书，所学专业或所取得的教师资格证任教学科要与报考岗位学科一致。","小学语文学科专业素养","特岗教师"]
["平安区教育局",21212011,"平安区洪水泉回族乡中心学校","专业技术岗位","小学语文教师2","小学教育、中国语言文学类（不含中国少数民族语言文学）",1,"本科或师范类大专毕业","面向全省",null,"小学语文学科专业素养","特岗教师",null,{"$f":"EXACT(E32,AA32)","v":true},true,true,true,true,true,true,true,null,null,"平安区教育局","平安区洪水泉回族乡中心学校","专业技术岗位","小学语文教师2","小学教育、中国语言文学类（不含中国少数民族语言文学）",1,"本科或师范类大专毕业","面向全省",null,"小学语文学科专业素养","特岗教师"]
["平安区教育局",21212012,"平安区小峡镇中心学校","专业技术岗位","小学语文教师3","小学教育、中国语言文学类（不含中国少数民族语言文学）",2,"本科或师范类大专毕业","面向全省",null,"小学语文学科专业素养","特岗教师",null,{"$f":"EXACT(E33,AA33)","v":true},true,true,true,true,true,true,true,null,null,"平安区教育局","平安区小峡镇中心学校","专业技术岗位","小学语文教师3","小学教育、中国语言文学类（不含中国少数民族语言文学）",2,"本科或师范类大专毕业","面向全省",null,"小学语文学科专业素养","特岗教师"]
["平安区教育局",21212013,"平安区石灰窑回族乡中心学校","专业技术岗位","小学语文教师4","小学教育、中国语言文学类（不含中国少数民族语言文学）",1,"本科或师范类大专毕业","面向全省",null,"小学语文学科专业素养","特岗教师",null,{"$f":"EXACT(E34,AA34)","v":true},true,true,true,true,true,true,true,null,null,"平安区教育局","平安区石灰窑回族乡中心学校","专业技术岗位","小学语文教师4","小学教育、中国语言文学类（不含中国少数民族语言文学）",1,"本科或师范类大专毕业","面向全省",null,"小学语文学科专业素养","特岗教师"]
["平安区教育局",21212014,"平安区石灰窑回族乡中心学校","专业技术岗位","小学数学教师","小学教育、数学类",1,"本科或师范类大专毕业","面向全省",null,"小学数学学科专业素养","特岗教师",null,{"$f":"EXACT(E35,AA35)","v":true},true,true,true,true,true,true,true,null,null,"平安区教育局","平安区石灰窑回族乡中心学校","专业技术岗位","小学数学教师","小学教育、数学类",1,"本科或师范类大专毕业","面向全省",null,"小学数学学科专业素养","特岗教师"]
["平安区教育局",21212015,"平安区高铁新区学校","专业技术岗位","小学英语教师1","小学教育、外国语言文学类（英语）",1,"本科或师范类大专毕业","面向全省",null,"小学英语学科专业素养","特岗教师",null,{"$f":"EXACT(E36,AA36)","v":true},true,true,true,true,true,true,true,null,null,"平安区教育局","平安区高铁新区学校","专业技术岗位","小学英语教师1","小学教育、外国语言文学类（英语）",1,"本科或师范类大专毕业","面向全省",null,"小学英语学科专业素养","特岗教师"]
["平安区教育局",21212016,"平安区巴藏沟回族乡中心学校","专业技术岗位","小学英语教师2","小学教育、外国语言文学类（英语）",1,"本科或师范类大专毕业","面向全省",null,"小学英语学科专业素养","特岗教师",null,{"$f":"EXACT(E37,AA37)","v":true},true,true,true,true,true,true,true,null,null,"平安区教育局","平安区巴藏沟回族乡中心学校","专业技术岗位","小学英语教师2","小学教育、外国语言文学类（英语）",1,"本科或师范类大专毕业","面向全省",null,"小学英语学科专业素养","特岗教师"]
["平安区教育局",21212017,"平安区洪水泉回族乡中心学校","专业技术岗位","小学英语教师3","小学教育、外国语言文学类（英语）",1,"本科或师范类大专毕业","面向全省",null,"小学英语学科专业素养","特岗教师",null,{"$f":"EXACT(E38,AA38)","v":true},true,true,true,true,true,true,true,null,null,"平安区教育局","平安区洪水泉回族乡中心学校","专业技术岗位","小学英语教师3","小学教育、外国语言文学类（英语）",1,"本科或师范类大专毕业","面向全省",null,"小学英语学科专业素养","特岗教师"]
["平安区教育局",21212018,"平安区平安镇中心学校","专业技术岗位","小学音乐教师","小学教育、音乐与舞蹈学类",1,"本科或师范类大专毕业","面向全省",null,"小学音乐学科专业素养","特岗教师",null,{"$f":"EXACT(E39,AA39)","v":true},true,true,true,true,true,true,true,null,null,"平安区教育局","平安区平安镇中心学校","专业技术岗位","小学音乐教师","小学教育、音乐与舞蹈学类",1,"本科或师范类大专毕业","面向全省",null,"小学音乐学科专业素养","特岗教师"]
["平安区教育局",21212019,"平安区小峡镇中心学校","专业技术岗位","小学体育教师1","小学教育、体育学类",1,"本科或师范类大专毕业","面向全省",null,"小学体育学科专业素养","特岗教师",null,{"$f":"EXACT(E40,AA40)","v":true},true,true,true,true,true,true,true,null,null,"平安区教育局","平安区小峡镇中心学校","专业技术岗位","小学体育教师1","小学教育、体育学类",1,"本科或师范类大专毕业","面向全省",null,"小学体育学科专业素养","特岗教师"]
["平安区教育局",21212020,"平安区巴藏沟回族乡中心学校","专业技术岗位","小学体育教师2","小学教育、体育学类",1,"本科或师范类大专毕业","面向全省",null,"小学体育学科专业素养","特岗教师",null,{"$f":"EXACT(E41,AA41)","v":true},true,true,true,true,true,true,true,null,null,"平安区教育局","平安区巴藏沟回族乡中心学校","专业技术岗位","小学体育教师2","小学教育、体育学类",1,"本科或师范类大专毕业","面向全省",null,"小学体育学科专业素养","特岗教师"]
["平安区教育局",21212021,"平安区沙沟回族乡中心学校","专业技术岗位","初中语文教师","中国语言文学类（不含中国少数民族语言文学）",1,"本科或师范类大专毕业","面向全省",null,"中学语文学科专业素养","特岗教师",null,{"$f":"EXACT(E42,AA42)","v":true},true,true,true,true,true,true,true,null,null,"平安区教育局","平安区沙沟回族乡中心学校","专业技术岗位","初中语文教师","中国语言文学类（不含中国少数民族语言文学）",1,"本科或师范类大专毕业","面向全省",null,"中学语文学科专业素养","特岗教师"]
["平安区教育局",21212022,"平安区沙沟回族乡中心学校","专业技术岗位","初中数学教师","数学类",1,"本科或师范类大专毕业","面向全省",null,"中学数学学科专业素养","特岗教师",null,{"$f":"EXACT(E43,AA43)","v":true},true,true,true,true,true,true,true,null,null,"平安区教育局","平安区沙沟回族乡中心学校","专业技术岗位","初中数学教师","数学类",1,"本科或师范类大专毕业","面向全省",null,"中学数学学科专业素养","特岗教师"]
["平安区教育局",21212023,"平安区沙沟回族乡中心学校","专业技术岗位","初中英语教师","外国语言文学类（英语）",1,"本科或师范类大专毕业","面向全省",null,"中学英语学科专业素养","特岗教师",null,{"$f":"EXACT(E44,AA44)","v":true},true,true,true,true,true,true,true,null,null,"平安区教育局","平安区沙沟回族乡中心学校","专业技术岗位","初中英语教师","外国语言文学类（英语）",1,"本科或师范类大专毕业","面向全省",null,"中学英语学科专业素养","特岗教师"]
["平安区教育局",21212024,"平安区高铁新区学校","专业技术岗位","初中地理教师","地理科学类",1,"本科或师范类大专毕业","面向全省",null,"中学地理学科专业素养","特岗教师",null,{"$f":"EXACT(E45,AA45)","v":true},true,true,true,true,true,true,true,null,null,"平安区教育局","平安区高铁新区学校","专业技术岗位","初中地理教师","地理科学类",1,"本科或师范类大专毕业","面向全省",null,"中学地理学科专业素养","特岗教师"]
["民和县教育局",21213001,"民和县各乡镇小学","专业技术岗位","小学语文教师1","小学教育、中国语言文学类（不含中国少数民族语言文学）",5,"大专及以上学历","面向全省","年龄35周岁及以下，具有相应学段及以上教师资格证书，所学专业或所取得的教师资格证任教学科要与报考学科一致。临聘教师报考年龄可放宽到45周岁。","小学语文学科专业素养","公开招聘",null,{"$f":"EXACT(E46,AA46)","v":true},true,true,true,true,true,true,true,null,null,"民和县教育局","民和县各乡镇小学","专业技术岗位","小学语文教师1","小学教育、中国语言文学类（不含中国少数民族语言文学）",5,"大专及以上学历","面向全省","年龄35周岁及以下，具有相应学段及以上教师资格证书，所学专业或所取得的教师资格证任教学科要与报考学科一致。临聘教师报考年龄可放宽到45周岁。","小学语文学科专业素养","公开招聘"]
["民和县教育局",21213002,"民和县各乡镇小学","专业技术岗位","小学数学教师1","小学教育、数学类",4,"大专及以上学历","面向全省",null,"小学数学学科专业素养","公开招聘",null,{"$f":"EXACT(E47,AA47)","v":true},true,true,true,true,true,true,true,null,null,"民和县教育局","民和县各乡镇小学","专业技术岗位","小学数学教师1","小学教育、数学类",4,"大专及以上学历","面向全省",null,"小学数学学科专业素养","公开招聘"]
["民和县教育局",21213003,"民和县各乡镇小学","专业技术岗位","小学英语教师1","小学教育、外国语言文学类（英语）",3,"大专及以上学历","面向全省",null,"小学英语学科专业素养","公开招聘",null,{"$f":"EXACT(E48,AA48)","v":true},true,true,true,true,true,true,true,null,null,"民和县教育局","民和县各乡镇小学","专业技术岗位","小学英语教师1","小学教育、外国语言文学类（英语）",3,"大专及以上学历","面向全省",null,"小学英语学科专业素养","公开招聘"]
["民和县教育局",21213004,"民和县各乡镇小学","专业技术岗位","小学音乐教师","小学教育、音乐与舞蹈学类",2,"大专及以上学历","面向全省",null,"小学音乐学科专业素养","公开招聘",null,{"$f":"EXACT(E49,AA49)","v":true},true,true,true,true,true,true,true,null,null,"民和县教育局","民和县各乡镇小学","专业技术岗位","小学音乐教师","小学教育、音乐与舞蹈学类",2,"大专及以上学历","面向全省",null,"小学音乐学科专业素养","公开招聘"]
["民和县教育局",21213005,"民和县各乡镇小学","专业技术岗位","小学体育教师","小学教育、体育学类",2,"大专及以上学历","面向全省",null,"小学体育学科专业素养","公开招聘",null,{"$f":"EXACT(E50,AA50)","v":true},true,true,true,true,true,true,true,null,null,"民和县教育局","民和县各乡镇小学","专业技术岗位","小学体育教师","小学教育、体育学类",2,"大专及以上学历","面向全省",null,"小学体育学科专业素养","公开招聘"]
["民和县教育局",21213006,"民和县各乡镇小学","专业技术岗位","小学美术教师","小学教育、美术学类",2,"大专及以上学历","面向全省",null,"小学美术学科专业素养","公开招聘",null,{"$f":"EXACT(E51,AA51)","v":true},true,true,true,true,true,true,true,null,null,"民和县教育局","民和县各乡镇小学","专业技术岗位","小学美术教师","小学教育、美术学类",2,"大专及以上学历","面向全省",null,"小学美术学科专业素养","公开招聘"]
["民和县教育局",21213007,"民和县各乡镇小学","专业技术岗位","小学科学教师","教育学类（小学教育、科学教育）、物理学类、力学类，化学类，生物科学类，地理科学类",2,"大专及以上学历","面向全省",null,"小学科学学科专业素养","公开招聘",null,{"$f":"EXACT(E52,AA52)","v":true},true,true,true,true,true,true,true,null,null,"民和县教育局","民和县各乡镇小学","专业技术岗位","小学科学教师","教育学类（小学教育、科学教育）、物理学类、力学类，化学类，生物科学类，地理科学类",2,"大专及以上学历","面向全省",null,"小学科学学科专业素养","公开招聘"]
["民和县教育局",21213008,"民和县诺民小学（工作地点在海西州诺木洪）","专业技术岗位","小学语文教师2","小学教育、中国语言文学类（不含中国少数民族语言文学）",1,"大专及以上学历","面向全省",null,"小学语文学科专业素养","公开招聘",null,{"$f":"EXACT(E53,AA53)","v":true},true,true,true,true,true,true,true,null,null,"民和县教育局","民和县诺民小学（工作地点在海西州诺木洪）","专业技术岗位","小学语文教师2","小学教育、中国语言文学类（不含中国少数民族语言文学）",1,"大专及以上学历","面向全省",null,"小学语文学科专业素养","公开招聘"]
["民和县教育局",21213009,"民和县诺民小学（工作地点在海西州诺木洪）","专业技术岗位","小学数学教师2","小学教育、数学类",1,"大专及以上学历","面向全省",null,"小学数学学科专业素养","公开招聘",null,{"$f":"EXACT(E54,AA54)","v":true},true,true,true,true,true,true,true,null,null,"民和县教育局","民和县诺民小学（工作地点在海西州诺木洪）","专业技术岗位","小学数学教师2","小学教育、数学类",1,"大专及以上学历","面向全省",null,"小学数学学科专业素养","公开招聘"]
["民和县教育局",21213010,"民和县诺民小学（工作地点在海西州诺木洪）","专业技术岗位","小学英语教师2","小学教育、外国语言文学类（英语）",1,"大专及以上学历","面向全省",null,"小学英语学科专业素养","公开招聘",null,{"$f":"EXACT(E55,AA55)","v":true},true,true,true,true,true,true,true,null,null,"民和县教育局","民和县诺民小学（工作地点在海西州诺木洪）","专业技术岗位","小学英语教师2","小学教育、外国语言文学类（英语）",1,"大专及以上学历","面向全省",null,"小学英语学科专业素养","公开招聘"]
["民和县教育局",21213011,"民和县各乡镇初中","专业技术岗位","初中生物教师","生物科学类",1,"本科及以上学历","面向全省",null,"中学生物学科专业素养","公开招聘",null,{"$f":"EXACT(E56,AA56)","v":true},true,true,true,true,true,true,true,null,null,"民和县教育局","民和县各乡镇初中","专业技术岗位","初中生物教师","生物科学类",1,"本科及以上学历","面向全省",null,"中学生物学科专业素养","公开招聘"]
["民和县教育局",21213012,"民和县各乡镇初中","专业技术岗位","初中政治教师","哲学类、政治学类、马克思主义理论类",1,"本科及以上学历","面向全省",null,"中学政治学科专业素养","公开招聘",null,{"$f":"EXACT(E57,AA57)","v":true},true,true,true,true,true,true,true,null,null,"民和县教育局","民和县各乡镇初中","专业技术岗位","初中政治教师","哲学类、政治学类、马克思主义理论类",1,"本科及以上学历","面向全省",null,"中学政治学科专业素养","公开招聘"]
["民和县教育局",21213013,"民和县各乡镇初中","专业技术岗位","初中物理教师","物理学类",1,"本科及以上学历","面向全省",null,"中学物理学科专业素养","公开招聘",null,{"$f":"EXACT(E58,AA58)","v":true},true,true,true,true,true,true,true,null,null,"民和县教育局","民和县各乡镇初中","专业技术岗位","初中物理教师","物理学类",1,"本科及以上学历","面向全省",null,"中学物理学科专业素养","公开招聘"]
["民和县教育局",21213014,"民和县各乡镇初中","专业技术岗位","初中化学教师","化学类",1,"本科及以上学历","面向全省",null,"中学化学学科专业素养","公开招聘",null,{"$f":"EXACT(E59,AA59)","v":true},true,true,true,true,true,true,true,null,null,"民和县教育局","民和县各乡镇初中","专业技术岗位","初中化学教师","化学类",1,"本科及以上学历","面向全省",null,"中学化学学科专业素养","公开招聘"]
["互助县教育局",21214001,"互助县县城各高中","专业技术岗位","高中语文教师","中国语言文学类（不含中国少数民族语言文学）",4,"本科及以上学历","面向全省","年龄35周岁及以下，具有相应学段及以上教师资格证书，所学专业或所取得的教师资格证任教学科要与报考学科一致。临聘教师报考年龄可放宽到45周岁。","中学语文学科专业素养","公开招聘",null,{"$f":"EXACT(E60,AA60)","v":true},true,true,true,true,true,true,true,null,null,"互助县教育局","互助县县城各高中","专业技术岗位","高中语文教师","中国语言文学类（不含中国少数民族语言文学）",4,"本科及以上学历","面向全省","年龄35周岁及以下，具有相应学段及以上教师资格证书，所学专业或所取得的教师资格证任教学科要与报考学科一致。临聘教师报考年龄可放宽到45周岁。","中学语文学科专业素养","公开招聘"]
["互助县教育局",21214002,"互助县县城各高中","专业技术岗位","高中英语教师","外国语言文学类（英语）",2,"本科及以上学历","面向全省",null,"中学英语学科专业素养","公开招聘",null,{"$f":"EXACT(E61,AA61)","v":true},true,true,true,true,true,true,true,null,null,"互助县教育局","互助县县城各高中","专业技术岗位","高中英语教师","外国语言文学类（英语）",2,"本科及以上学历","面向全省",null,"中学英语学科专业素养","公开招聘"]
["互助县教育局",21214003,"互助县县城各高中","专业技术岗位","高中数学教师","数学类",1,"本科及以上学历","面向全省",null,"中学数学学科专业素养","公开招聘",null,{"$f":"EXACT(E62,AA62)","v":true},true,true,true,true,true,true,true,null,null,"互助县教育局","互助县县城各高中","专业技术岗位","高中数学教师","数学类",1,"本科及以上学历","面向全省",null,"中学数学学科专业素养","公开招聘"]
["互助县教育局",21214004,"互助县县城各高中","专业技术岗位","高中物理教师","物理学类",1,"本科及以上学历","面向全省",null,"中学物理学科专业素养","公开招聘",null,{"$f":"EXACT(E63,AA63)","v":true},true,true,true,true,true,true,true,null,null,"互助县教育局","互助县县城各高中","专业技术岗位","高中物理教师","物理学类",1,"本科及以上学历","面向全省",null,"中学物理学科专业素养","公开招聘"]
["互助县教育局",21214005,"互助县县城各高中","专业技术岗位","高中化学教师","化学类",3,"本科及以上学历","面向全省",null,"中学化学学科专业素养","公开招聘",null,{"$f":"EXACT(E64,AA64)","v":true},true,true,true,true,true,true,true,null,null,"互助县教育局","互助县县城各高中","专业技术岗位","高中化学教师","化学类",3,"本科及以上学历","面向全省",null,"中学化学学科专业素养","公开招聘"]
["互助县教育局",21214006,"互助县县城各高中","专业技术岗位","高中生物教师","生物科学类",1,"本科及以上学历","面向全省",null,"中学生物学科专业素养","公开招聘",null,{"$f":"EXACT(E65,AA65)","v":true},true,true,true,true,true,true,true,null,null,"互助县教育局","互助县县城各高中","专业技术岗位","高中生物教师","生物科学类",1,"本科及以上学历","面向全省",null,"中学生物学科专业素养","公开招聘"]
["互助县教育局",21214007,"互助县县城各高中","专业技术岗位","高中政治教师","哲学类、政治学类、马克思主义理论类",2,"本科及以上学历","面向全省",null,"中学政治学科专业素养","公开招聘",null,{"$f":"EXACT(E66,AA66)","v":true},true,true,true,true,true,true,true,null,null,"互助县教育局","互助县县城各高中","专业技术岗位","高中政治教师","哲学类、政治学类、马克思主义理论类",2,"本科及以上学历","面向全省",null,"中学政治学科专业素养","公开招聘"]
["互助县教育局",21214008,"互助县县城各高中","专业技术岗位","高中历史教师","历史学类",1,"本科及以上学历","面向全省",null,"中学历史学科专业素养","公开招聘",null,{"$f":"EXACT(E67,AA67)","v":true},true,true,true,true,true,true,true,null,null,"互助县教育局","互助县县城各高中","专业技术岗位","高中历史教师","历史学类",1,"本科及以上学历","面向全省",null,"中学历史学科专业素养","公开招聘"]
["互助县教育局",21214009,"互助县县城各高中","专业技术岗位","高中地理教师","地理科学类",1,"本科及以上学历","面向全省",null,"中学地理学科专业素养","公开招聘",null,{"$f":"EXACT(E68,AA68)","v":true},true,true,true,true,true,true,true,null,null,"互助县教育局","互助县县城各高中","专业技术岗位","高中地理教师","地理科学类",1,"本科及以上学历","面向全省",null,"中学地理学科专业素养","公开招聘"]
["互助县教育局",21214010,"互助县县城各高中","专业技术岗位","高中音乐教师","音乐与舞蹈学类",1,"本科及以上学历","面向全省",null,"中学音乐学科专业素养","公开招聘",null,{"$f":"EXACT(E69,AA69)","v":true},true,true,true,true,true,true,true,null,null,"互助县教育局","互助县县城各高中","专业技术岗位","高中音乐教师","音乐与舞蹈学类",1,"本科及以上学历","面向全省",null,"中学音乐学科专业素养","公开招聘"]
["互助县教育局",21214011,"互助县县城各高中","专业技术岗位","高中体育教师","体育学类",2,"本科及以上学历","面向全省",null,"中学体育学科专业素养","公开招聘",null,{"$f":"EXACT(E70,AA70)","v":true},true,true,true,true,true,true,true,null,null,"互助县教育局","互助县县城各高中","专业技术岗位","高中体育教师","体育学类",2,"本科及以上学历","面向全省",null,"中学体育学科专业素养","公开招聘"]
["互助县教育局",21214012,"互助县县城各高中","专业技术岗位","高中美术教师","美术学类",1,"本科及以上学历","面向全省",null,"中学美术学科专业素养","公开招聘",null,{"$f":"EXACT(E71,AA71)","v":true},true,true,true,true,true,true,true,null,null,"互助县教育局","互助县县城各高中","专业技术岗位","高中美术教师","美术学类",1,"本科及以上学历","面向全省",null,"中学美术学科专业素养","公开招聘"]
["互助县教育局",21214013,"互助县县城各初中","专业技术岗位","初中语文教师","中国语言文学类（不含中国少数民族语言文学）",1,"本科及以上学历","面向全省",null,"中学语文学科专业素养","公开招聘",null,{"$f":"EXACT(E72,AA72)","v":true},true,true,true,true,true,true,true,null,null,"互助县教育局","互助县县城各初中","专业技术岗位","初中语文教师","中国语言文学类（不含中国少数民族语言文学）",1,"本科及以上学历","面向全省",null,"中学语文学科专业素养","公开招聘"]
["互助县教育局",21214014,"互助县县城各初中","专业技术岗位","初中数学教师","数学类",1,"本科及以上学历","面向全省",null,"中学数学学科专业素养","公开招聘",null,{"$f":"EXACT(E73,AA73)","v":true},true,true,true,true,true,true,true,null,null,"互助县教育局","互助县县城各初中","专业技术岗位","初中数学教师","数学类",1,"本科及以上学历","面向全省",null,"中学数学学科专业素养","公开招聘"]
["互助县教育局",21214015,"互助县县城各初中","专业技术岗位","初中英语教师","外国语言文学类（英语）",2,"本科及以上学历","面向全省","年龄35周岁及以下，具有相应学段及以上教师资格证书，所学专业或所取得的教师资格证任教学科要与报考学科一致。临聘教师报考年龄可放宽到45周岁。","中学英语学科专业素养","公开招聘",null,{"$f":"EXACT(E74,AA74)","v":true},true,true,true,true,true,true,true,null,null,"互助县教育局","互助县县城各初中","专业技术岗位","初中英语教师","外国语言文学类（英语）",2,"本科及以上学历","面向全省","年龄35周岁及以下，具有相应学段及以上教师资格证书，所学专业或所取得的教师资格证任教学科要与报考学科一致。临聘教师报考年龄可放宽到45周岁。","中学英语学科专业素养","公开招聘"]
["互助县教育局",21214016,"互助县县城各初中","专业技术岗位","初中政治教师","哲学类、政治学类、马克思主义理论类",1,"本科及以上学历","面向全省",null,"中学政治学科专业素养","公开招聘",null,{"$f":"EXACT(E75,AA75)","v":true},true,true,true,true,true,true,true,null,null,"互助县教育局","互助县县城各初中","专业技术岗位","初中政治教师","哲学类、政治学类、马克思主义理论类",1,"本科及以上学历","面向全省",null,"中学政治学科专业素养","公开招聘"]
["互助县教育局",21214017,"互助县县城各初中","专业技术岗位","初中体育教师","体育学类",1,"本科及以上学历","面向全省",null,"中学体育学科专业素养","公开招聘",null,{"$f":"EXACT(E76,AA76)","v":true},true,true,true,true,true,true,true,null,null,"互助县教育局","互助县县城各初中","专业技术岗位","初中体育教师","体育学类",1,"本科及以上学历","面向全省",null,"中学体育学科专业素养","公开招聘"]
["互助县教育局",21214018,"互助县县城各初中","专业技术岗位","初中音乐教师","音乐与舞蹈学类",1,"本科及以上学历","面向全省",null,"中学音乐学科专业素养","公开招聘",null,{"$f":"EXACT(E77,AA77)","v":true},true,true,true,true,true,true,true,null,null,"互助县教育局","互助县县城各初中","专业技术岗位","初中音乐教师","音乐与舞蹈学类",1,"本科及以上学历","面向全省",null,"中学音乐学科专业素养","公开招聘"]
["互助县教育局",21214019,"互助县县城各初中","专业技术岗位","初中美术教师","美术学类",1,"本科及以上学历","面向全省",null,"中学美术学科专业素养","公开招聘",null,{"$f":"EXACT(E78,AA78)","v":true},true,true,true,true,true,true,true,null,null,"互助县教育局","互助县县城各初中","专业技术岗位","初中美术教师","美术学类",1,"本科及以上学历","面向全省",null,"中学美术学科专业素养","公开招聘"]
["互助县教育局",21214020,"互助县县城各小学","专业技术岗位","小学语文教师","小学教育、中国语言文学类（不含中国少数民族语言文学）",2,"大专及以上学历","面向全省",null,"小学语文学科专业素养","公开招聘",null,{"$f":"EXACT(E79,AA79)","v":true},true,true,true,true,true,true,true,null,null,"互助县教育局","互助县县城各小学","专业技术岗位","小学语文教师","小学教育、中国语言文学类（不含中国少数民族语言文学）",2,"大专及以上学历","面向全省",null,"小学语文学科专业素养","公开招聘"]
["互助县教育局",21214021,"互助县县城各小学","专业技术岗位","小学数学教师","小学教育、数学类",2,"大专及以上学历","面向全省",null,"小学数学学科专业素养","公开招聘",null,{"$f":"EXACT(E80,AA80)","v":true},true,true,true,true,true,true,true,null,null,"互助县教育局","互助县县城各小学","专业技术岗位","小学数学教师","小学教育、数学类",2,"大专及以上学历","面向全省",null,"小学数学学科专业素养","公开招聘"]
["互助县教育局",21214022,"互助县县城各小学","专业技术岗位","小学英语教师","小学教育、外国语言文学类（英语）",2,"大专及以上学历","面向全省",null,"小学英语学科专业素养","公开招聘",null,{"$f":"EXACT(E81,AA81)","v":true},true,true,true,true,true,true,true,null,null,"互助县教育局","互助县县城各小学","专业技术岗位","小学英语教师","小学教育、外国语言文学类（英语）",2,"大专及以上学历","面向全省",null,"小学英语学科专业素养","公开招聘"]
["互助县教育局",21214023,"互助县县城各小学","专业技术岗位","小学道德与法治教师","小学教育、哲学类、政治学类、马克思主义理论类",2,"大专及以上学历","面向全省",null,"小学道德与法治学科专业素养","公开招聘",null,{"$f":"EXACT(E82,AA82)","v":true},true,true,true,true,true,true,true,null,null,"互助县教育局","互助县县城各小学","专业技术岗位","小学道德与法治教师","小学教育、哲学类、政治学类、马克思主义理论类",2,"大专及以上学历","面向全省",null,"小学道德与法治学科专业素养","公开招聘"]
["互助县教育局",21214024,"互助县县城各小学","专业技术岗位","小学体育教师","小学教育、体育学类",2,"大专及以上学历","面向全省",null,"小学体育学科专业素养","公开招聘",null,{"$f":"EXACT(E83,AA83)","v":true},true,true,true,true,true,true,true,null,null,"互助县教育局","互助县县城各小学","专业技术岗位","小学体育教师","小学教育、体育学类",2,"大专及以上学历","面向全省",null,"小学体育学科专业素养","公开招聘"]
["互助县教育局",21214025,"互助县县城各小学","专业技术岗位","小学音乐教师","小学教育、音乐与舞蹈学类",1,"大专及以上学历","面向全省",null,"小学音乐学科专业素养","公开招聘",null,{"$f":"EXACT(E84,AA84)","v":true},true,true,true,true,true,true,true,null,null,"互助县教育局","互助县县城各小学","专业技术岗位","小学音乐教师","小学教育、音乐与舞蹈学类",1,"大专及以上学历","面向全省",null,"小学音乐学科专业素养","公开招聘"]
["互助县教育局",21214026,"互助县县城各小学","专业技术岗位","小学美术教师","小学教育、美术学类",1,"大专及以上学历","面向全省",null,"小学美术学科专业素养","公开招聘",null,{"$f":"EXACT(E85,AA85)","v":true},true,true,true,true,true,true,true,null,null,"互助县教育局","互助县县城各小学","专业技术岗位","小学美术教师","小学教育、美术学类",1,"大专及以上学历","面向全省",null,"小学美术学科专业素养","公开招聘"]
["互助县教育局",21214027,"互助县县城各小学","专业技术岗位","小学科学教师","教育学类（小学教育、科学教育）、物理学类、力学类，化学类，生物科学类，地理科学类",2,"大专及以上学历","面向全省",null,"小学科学学科专业素养","公开招聘",null,{"$f":"EXACT(E86,AA86)","v":true},true,true,true,true,true,true,true,null,null,"互助县教育局","互助县县城各小学","专业技术岗位","小学科学教师","教育学类（小学教育、科学教育）、物理学类、力学类，化学类，生物科学类，地理科学类",2,"大专及以上学历","面向全省",null,"小学科学学科专业素养","公开招聘"]
["互助县教育局",21214028,"互助县乡镇各初中","专业技术岗位","初中语文教师","中国语言文学类（不含中国少数民族语言文学）",1,"本科或师范类大专毕业","面向全省","年龄30周岁及以下,具有相应学段及以上教师资格证书，所学专业或所取得的教师资格证任教学科要与报考岗位学科一致。","中学语文学科专业素养","特岗教师",null,{"$f":"EXACT(E87,AA87)","v":true},true,true,true,true,true,true,true,null,null,"互助县教育局","互助县乡镇各初中","专业技术岗位","初中语文教师","中国语言文学类（不含中国少数民族语言文学）",1,"本科或师范类大专毕业","面向全省","年龄30周岁及以下,具有相应学段及以上教师资格证书，所学专业或所取得的教师资格证任教学科要与报考岗位学科一致。","中学语文学科专业素养","特岗教师"]
["互助县教育局",21214029,"互助县乡镇各初中","专业技术岗位","初中数学教师","数学类",1,"本科或师范类大专毕业","面向全省",null,"中学数学学科专业素养","特岗教师",null,{"$f":"EXACT(E88,AA88)","v":true},true,true,true,true,true,true,true,null,null,"互助县教育局","互助县乡镇各初中","专业技术岗位","初中数学教师","数学类",1,"本科或师范类大专毕业","面向全省",null,"中学数学学科专业素养","特岗教师"]
["互助县教育局",21214030,"互助县加定、巴扎、松多中心学校","专业技术岗位","小学语文教师","小学教育、中国语言文学类（不含中国少数民族语言文学）",1,"本科或师范类大专毕业","面向全省",null,"小学语文学科专业素养","特岗教师",null,{"$f":"EXACT(E89,AA89)","v":true},true,true,true,true,true,true,true,null,null,"互助县教育局","互助县加定、巴扎、松多中心学校","专业技术岗位","小学语文教师","小学教育、中国语言文学类（不含中国少数民族语言文学）",1,"本科或师范类大专毕业","面向全省",null,"小学语文学科专业素养","特岗教师"]
["互助县教育局",21214031,"互助县加定、巴扎、松多中心学校","专业技术岗位","小学数学教师","小学教育、数学类",1,"本科或师范类大专毕业","面向全省",null,"小学数学学科专业素养","特岗教师",null,{"$f":"EXACT(E90,AA90)","v":true},true,true,true,true,true,true,true,null,null,"互助县教育局","互助县加定、巴扎、松多中心学校","专业技术岗位","小学数学教师","小学教育、数学类",1,"本科或师范类大专毕业","面向全省",null,"小学数学学科专业素养","特岗教师"]
["互助县教育局",21214032,"互助县加定、巴扎、松多中心学校","专业技术岗位","小学英语教师","小学教育、外国语言文学类（英语）",1,"本科或师范类大专毕业","面向全省",null,"小学英语学科专业素养","特岗教师",null,{"$f":"EXACT(E91,AA91)","v":true},true,true,true,true,true,true,true,null,null,"互助县教育局","互助县加定、巴扎、松多中心学校","专业技术岗位","小学英语教师","小学教育、外国语言文学类（英语）",1,"本科或师范类大专毕业","面向全省",null,"小学英语学科专业素养","特岗教师"]
["化隆县教育局",21215001,"化隆县各高中","专业技术岗位","高中语文教师","中国语言文学类（不含中国少数民族语言文学）",7,"本科及以上学历","面向全省","年龄35周岁及以下，具有相应学段及以上教师资格证书，所学专业或所取得的教师资格证任教学科要与报考学科一致。临聘教师报考年龄可放宽到45周岁。","中学语文学科专业素养","公开招聘",null,{"$f":"EXACT(E92,AA92)","v":true},true,true,true,true,true,true,true,null,null,"化隆县教育局","化隆县各高中","专业技术岗位","高中语文教师","中国语言文学类（不含中国少数民族语言文学）",7,"本科及以上学历","面向全省","年龄35周岁及以下，具有相应学段及以上教师资格证书，所学专业或所取得的教师资格证任教学科要与报考学科一致。临聘教师报考年龄可放宽到45周岁。","中学语文学科专业素养","公开招聘"]
["化隆县教育局",21215002,"化隆县各高中","专业技术岗位","高中数学教师","数学类",4,"本科及以上学历","面向全省",null,"中学数学学科专业素养","公开招聘",null,{"$f":"EXACT(E93,AA93)","v":true},true,true,true,true,true,true,true,null,null,"化隆县教育局","化隆县各高中","专业技术岗位","高中数学教师","数学类",4,"本科及以上学历","面向全省",null,"中学数学学科专业素养","公开招聘"]
["化隆县教育局",21215003,"化隆县各高中","专业技术岗位","高中英语教师","外国语言文学类（英语）",7,"本科及以上学历","面向全省",null,"中学英语学科专业素养","公开招聘",null,{"$f":"EXACT(E94,AA94)","v":true},true,true,true,true,true,true,true,null,null,"化隆县教育局","化隆县各高中","专业技术岗位","高中英语教师","外国语言文学类（英语）",7,"本科及以上学历","面向全省",null,"中学英语学科专业素养","公开招聘"]
["化隆县教育局",21215004,"化隆县各高中","专业技术岗位","高中物理教师","物理学类",3,"本科及以上学历","面向全省",null,"中学物理学科专业素养","公开招聘",null,{"$f":"EXACT(E95,AA95)","v":true},true,true,true,true,true,true,true,null,null,"化隆县教育局","化隆县各高中","专业技术岗位","高中物理教师","物理学类",3,"本科及以上学历","面向全省",null,"中学物理学科专业素养","公开招聘"]
["化隆县教育局",21215005,"化隆县各高中","专业技术岗位","高中化学教师","化学类",5,"本科及以上学历","面向全省",null,"中学化学学科专业素养","公开招聘",null,{"$f":"EXACT(E96,AA96)","v":true},true,true,true,true,true,true,true,null,null,"化隆县教育局","化隆县各高中","专业技术岗位","高中化学教师","化学类",5,"本科及以上学历","面向全省",null,"中学化学学科专业素养","公开招聘"]
["化隆县教育局",21215006,"化隆县各高中","专业技术岗位","高中生物教师","生物科学类",3,"本科及以上学历","面向全省",null,"中学生物学科专业素养","公开招聘",null,{"$f":"EXACT(E97,AA97)","v":true},true,true,true,true,true,true,true,null,null,"化隆县教育局","化隆县各高中","专业技术岗位","高中生物教师","生物科学类",3,"本科及以上学历","面向全省",null,"中学生物学科专业素养","公开招聘"]
["化隆县教育局",21215007,"化隆县各高中","专业技术岗位","高中政治教师","哲学类、政治学类、马克思主义理论类",2,"本科及以上学历","面向全省",null,"中学政治学科专业素养","公开招聘",null,{"$f":"EXACT(E98,AA98)","v":true},true,true,true,true,true,true,true,null,null,"化隆县教育局","化隆县各高中","专业技术岗位","高中政治教师","哲学类、政治学类、马克思主义理论类",2,"本科及以上学历","面向全省",null,"中学政治学科专业素养","公开招聘"]
["化隆县教育局",21215008,"化隆县各高中","专业技术岗位","高中历史教师","历史学类",1,"本科及以上学历","面向全省",null,"中学历史学科专业素养","公开招聘",null,{"$f":"EXACT(E99,AA99)","v":true},true,true,true,true,true,true,true,null,null,"化隆县教育局","化隆县各高中","专业技术岗位","高中历史教师","历史学类",1,"本科及以上学历","面向全省",null,"中学历史学科专业素养","公开招聘"]
["化隆县教育局",21215009,"化隆县各高中","专业技术岗位","高中地理教师","地理科学类",3,"本科及以上学历","面向全省",null,"中学地理学科专业素养","公开招聘",null,{"$f":"EXACT(E100,AA100)","v":true},true,true,true,true,true,true,true,null,null,"化隆县教育局","化隆县各高中","专业技术岗位","高中地理教师","地理科学类",3,"本科及以上学历","面向全省",null,"中学地理学科专业素养","公开招聘"]
["化隆县教育局",21215010,"化隆县各乡镇初中","专业技术岗位","初中语文教师","中国语言文学类（不含中国少数民族语言文学）",6,"本科及以上学历","面向全省",null,"中学语文学科专业素养","公开招聘",null,{"$f":"EXACT(E101,AA101)","v":true},true,true,true,true,true,true,true,null,null,"化隆县教育局","化隆县各乡镇初中","专业技术岗位","初中语文教师","中国语言文学类（不含中国少数民族语言文学）",6,"本科及以上学历","面向全省",null,"中学语文学科专业素养","公开招聘"]
["化隆县教育局",21215011,"化隆县各乡镇初中","专业技术岗位","初中数学教师","数学类",6,"本科及以上学历","面向全省",null,"中学数学学科专业素养","公开招聘",null,{"$f":"EXACT(E102,AA102)","v":true},true,true,true,true,true,true,true,null,null,"化隆县教育局","化隆县各乡镇初中","专业技术岗位","初中数学教师","数学类",6,"本科及以上学历","面向全省",null,"中学数学学科专业素养","公开招聘"]
["化隆县教育局",21215012,"化隆县各乡镇初中","专业技术岗位","初中英语教师","外国语言文学类（英语）",6,"本科及以上学历","面向全省",null,"中学英语学科专业素养","公开招聘",null,{"$f":"EXACT(E103,AA103)","v":true},true,true,true,true,true,true,true,null,null,"化隆县教育局","化隆县各乡镇初中","专业技术岗位","初中英语教师","外国语言文学类（英语）",6,"本科及以上学历","面向全省",null,"中学英语学科专业素养","公开招聘"]
["化隆县教育局",21215013,"化隆县各乡镇初中","专业技术岗位","初中物理教师","物理学类",3,"本科及以上学历","面向全省","年龄35周岁及以下，具有相应学段及以上教师资格证书，所学专业或所取得的教师资格证任教学科要与报考学科一致。临聘教师报考年龄可放宽到45周岁。","中学物理学科专业素养","公开招聘",null,{"$f":"EXACT(E104,AA104)","v":true},true,true,true,true,true,true,true,null,null,"化隆县教育局","化隆县各乡镇初中","专业技术岗位","初中物理教师","物理学类",3,"本科及以上学历","面向全省","年龄35周岁及以下，具有相应学段及以上教师资格证书，所学专业或所取得的教师资格证任教学科要与报考学科一致。临聘教师报考年龄可放宽到45周岁。","中学物理学科专业素养","公开招聘"]
["化隆县教育局",21215014,"化隆县各乡镇初中","专业技术岗位","初中化学教师","化学类",3,"本科及以上学历","面向全省",null,"中学化学学科专业素养","公开招聘",null,{"$f":"EXACT(E105,AA105)","v":true},true,true,true,true,true,true,true,null,null,"化隆县教育局","化隆县各乡镇初中","专业技术岗位","初中化学教师","化学类",3,"本科及以上学历","面向全省",null,"中学化学学科专业素养","公开招聘"]
["化隆县教育局",21215015,"化隆县各乡镇初中","专业技术岗位","初中生物教师","生物科学类",3,"本科及以上学历","面向全省",null,"中学生物学科专业素养","公开招聘",null,{"$f":"EXACT(E106,AA106)","v":true},true,true,true,true,true,true,true,null,null,"化隆县教育局","化隆县各乡镇初中","专业技术岗位","初中生物教师","生物科学类",3,"本科及以上学历","面向全省",null,"中学生物学科专业素养","公开招聘"]
["化隆县教育局",21215016,"化隆县各乡镇初中","专业技术岗位","初中政治教师","哲学类、政治学类、马克思主义理论类",3,"本科及以上学历","面向全省",null,"中学政治学科专业素养","公开招聘",null,{"$f":"EXACT(E107,AA107)","v":true},true,true,true,true,true,true,true,null,null,"化隆县教育局","化隆县各乡镇初中","专业技术岗位","初中政治教师","哲学类、政治学类、马克思主义理论类",3,"本科及以上学历","面向全省",null,"中学政治学科专业素养","公开招聘"]
["化隆县教育局",21215017,"化隆县各乡镇初中","专业技术岗位","初中历史教师","历史学类",3,"本科及以上学历","面向全省",null,"中学历史学科专业素养","公开招聘",null,{"$f":"EXACT(E108,AA108)","v":true},true,true,true,true,true,true,true,null,null,"化隆县教育局","化隆县各乡镇初中","专业技术岗位","初中历史教师","历史学类",3,"本科及以上学历","面向全省",null,"中学历史学科专业素养","公开招聘"]
["化隆县教育局",21215018,"化隆县各乡镇初中","专业技术岗位","初中地理教师","地理科学类",4,"本科及以上学历","面向全省",null,"中学地理学科专业素养","公开招聘",null,{"$f":"EXACT(E109,AA109)","v":true},true,true,true,true,true,true,true,null,null,"化隆县教育局","化隆县各乡镇初中","专业技术岗位","初中地理教师","地理科学类",4,"本科及以上学历","面向全省",null,"中学地理学科专业素养","公开招聘"]
["化隆县教育局",21215019,"化隆县各乡镇初中","专业技术岗位","初中音乐教师","音乐与舞蹈学类",1,"本科及以上学历","面向全省",null,"中学音乐学科专业素养","公开招聘",null,{"$f":"EXACT(E110,AA110)","v":true},true,true,true,true,true,true,true,null,null,"化隆县教育局","化隆县各乡镇初中","专业技术岗位","初中音乐教师","音乐与舞蹈学类",1,"本科及以上学历","面向全省",null,"中学音乐学科专业素养","公开招聘"]
["化隆县教育局",21215020,"化隆县各乡镇初中","专业技术岗位","初中体育教师","体育学类",1,"本科及以上学历","面向全省",null,"中学体育学科专业素养","公开招聘",null,{"$f":"EXACT(E111,AA111)","v":true},true,true,true,true,true,true,true,null,null,"化隆县教育局","化隆县各乡镇初中","专业技术岗位","初中体育教师","体育学类",1,"本科及以上学历","面向全省",null,"中学体育学科专业素养","公开招聘"]
["化隆县教育局",21215021,"化隆县各乡镇初中","专业技术岗位","初中美术教师","美术学类",1,"本科及以上学历","面向全省",null,"中学美术学科专业素养","公开招聘",null,{"$f":"EXACT(E112,AA112)","v":true},true,true,true,true,true,true,true,null,null,"化隆县教育局","化隆县各乡镇初中","专业技术岗位","初中美术教师","美术学类",1,"本科及以上学历","面向全省",null,"中学美术学科专业素养","公开招聘"]
["化隆县教育局",21215022,"化隆县各乡镇小学","专业技术岗位","小学语文教师","小学教育、中国语言文学类（不含中国少数民族语言文学）",9,"大专及以上学历","面向全省",null,"小学语文学科专业素养","公开招聘",null,{"$f":"EXACT(E113,AA113)","v":true},true,true,true,true,true,true,true,null,null,"化隆县教育局","化隆县各乡镇小学","专业技术岗位","小学语文教师","小学教育、中国语言文学类（不含中国少数民族语言文学）",9,"大专及以上学历","面向全省",null,"小学语文学科专业素养","公开招聘"]
["化隆县教育局",21215023,"化隆县各乡镇小学","专业技术岗位","小学数学教师","小学教育、数学类",9,"大专及以上学历","面向全省",null,"小学数学学科专业素养","公开招聘",null,{"$f":"EXACT(E114,AA114)","v":true},true,true,true,true,true,true,true,null,null,"化隆县教育局","化隆县各乡镇小学","专业技术岗位","小学数学教师","小学教育、数学类",9,"大专及以上学历","面向全省",null,"小学数学学科专业素养","公开招聘"]
["化隆县教育局",21215024,"化隆县各乡镇小学","专业技术岗位","小学英语教师","小学教育、外国语言文学类（英语）",5,"大专及以上学历","面向全省",null,"小学英语学科专业素养","公开招聘",null,{"$f":"EXACT(E115,AA115)","v":true},true,true,true,true,true,true,true,null,null,"化隆县教育局","化隆县各乡镇小学","专业技术岗位","小学英语教师","小学教育、外国语言文学类（英语）",5,"大专及以上学历","面向全省",null,"小学英语学科专业素养","公开招聘"]
["化隆县教育局",21215025,"化隆县各乡镇小学","专业技术岗位","小学道德与法治教师","小学教育、哲学类、政治学类、马克思主义理论类",2,"大专及以上学历","面向全省",null,"小学道德与法治学科专业素养","公开招聘",null,{"$f":"EXACT(E116,AA116)","v":true},true,true,true,true,true,true,true,null,null,"化隆县教育局","化隆县各乡镇小学","专业技术岗位","小学道德与法治教师","小学教育、哲学类、政治学类、马克思主义理论类",2,"大专及以上学历","面向全省",null,"小学道德与法治学科专业素养","公开招聘"]
["化隆县教育局",21215026,"化隆县各乡镇小学","专业技术岗位","小学音乐教师","小学教育、音乐与舞蹈学类",4,"大专及以上学历","面向全省",null,"小学音乐学科专业素养","公开招聘",null,{"$f":"EXACT(E117,AA117)","v":true},true,true,true,true,true,true,true,null,null,"化隆县教育局","化隆县各乡镇小学","专业技术岗位","小学音乐教师","小学教育、音乐与舞蹈学类",4,"大专及以上学历","面向全省",null,"小学音乐学科专业素养","公开招聘"]
["化隆县教育局",21215027,"化隆县各乡镇小学","专业技术岗位","小学体育教师","小学教育、体育学类",4,"大专及以上学历","面向全省",null,"小学体育学科专业素养","公开招聘",null,{"$f":"EXACT(E118,AA118)","v":true},true,true,true,true,true,true,true,null,null,"化隆县教育局","化隆县各乡镇小学","专业技术岗位","小学体育教师","小学教育、体育学类",4,"大专及以上学历","面向全省",null,"小学体育学科专业素养","公开招聘"]
["化隆县教育局",21215028,"化隆县各乡镇小学","专业技术岗位","小学美术教师","小学教育、美术学类",5,"大专及以上学历","面向全省",null,"小学美术学科专业素养","公开招聘",null,{"$f":"EXACT(E119,AA119)","v":true},true,true,true,true,true,true,true,null,null,"化隆县教育局","化隆县各乡镇小学","专业技术岗位","小学美术教师","小学教育、美术学类",5,"大专及以上学历","面向全省",null,"小学美术学科专业素养","公开招聘"]
["化隆县教育局",21215029,"化隆县各乡镇小学","专业技术岗位","小学科学教师","教育学类（小学教育、科学教育）、物理学类、力学类，化学类，生物科学类，地理科学类",3,"大专及以上学历","面向全省",null,"小学科学学科专业素养","公开招聘",null,{"$f":"EXACT(E120,AA120)","v":true},true,true,true,true,true,true,true,null,null,"化隆县教育局","化隆县各乡镇小学","专业技术岗位","小学科学教师","教育学类（小学教育、科学教育）、物理学类、力学类，化学类，生物科学类，地理科学类",3,"大专及以上学历","面向全省",null,"小学科学学科专业素养","公开招聘"]
["化隆县教育局",21215030,"化隆县各乡镇小学","专业技术岗位","小学语文教师","小学教育、中国语言文学类（不含中国少数民族语言文学）",2,"本科或师范类大专毕业","面向全省","年龄30周岁及以下,具有相应学段及以上教师资格证书，所学专业或所取得的教师资格证任教学科要与报考岗位学科一致。","小学语文学科专业素养","特岗教师",null,{"$f":"EXACT(E121,AA121)","v":true},true,true,true,true,true,true,true,null,null,"化隆县教育局","化隆县各乡镇小学","专业技术岗位","小学语文教师","小学教育、中国语言文学类（不含中国少数民族语言文学）",2,"本科或师范类大专毕业","面向全省","年龄30周岁及以下,具有相应学段及以上教师资格证书，所学专业或所取得的教师资格证任教学科要与报考岗位学科一致。","小学语文学科专业素养","特岗教师"]
["化隆县教育局",21215031,"化隆县各乡镇小学","专业技术岗位","小学数学教师","小学教育、数学类",2,"本科或师范类大专毕业","面向全省",null,"小学数学学科专业素养","特岗教师",null,{"$f":"EXACT(E122,AA122)","v":true},true,true,true,true,true,true,true,null,null,"化隆县教育局","化隆县各乡镇小学","专业技术岗位","小学数学教师","小学教育、数学类",2,"本科或师范类大专毕业","面向全省",null,"小学数学学科专业素养","特岗教师"]
["化隆县教育局",21215032,"化隆县各乡镇小学","专业技术岗位","小学英语教师","小学教育、外国语言文学类（英语）",2,"本科或师范类大专毕业","面向全省",null,"小学英语学科专业素养","特岗教师",null,{"$f":"EXACT(E123,AA123)","v":true},true,true,true,true,true,true,true,null,null,"化隆县教育局","化隆县各乡镇小学","专业技术岗位","小学英语教师","小学教育、外国语言文学类（英语）",2,"本科或师范类大专毕业","面向全省",null,"小学英语学科专业素养","特岗教师"]
["化隆县教育局",21215033,"化隆县各乡镇小学","专业技术岗位","小学道德与法治教师","小学教育、哲学类、政治学类、马克思主义理论类",2,"本科或师范类大专毕业","面向全省",null,"小学道德与法治学科专业素养","特岗教师",null,{"$f":"EXACT(E124,AA124)","v":true},true,true,true,true,true,true,true,null,null,"化隆县教育局","化隆县各乡镇小学","专业技术岗位","小学道德与法治教师","小学教育、哲学类、政治学类、马克思主义理论类",2,"本科或师范类大专毕业","面向全省",null,"小学道德与法治学科专业素养","特岗教师"]
["化隆县教育局",21215034,"化隆县各乡镇小学","专业技术岗位","小学音乐教师","小学教育、音乐与舞蹈学类",2,"本科或师范类大专毕业","面向全省",null,"小学音乐学科专业素养","特岗教师",null,{"$f":"EXACT(E125,AA125)","v":true},true,true,true,true,true,true,true,null,null,"化隆县教育局","化隆县各乡镇小学","专业技术岗位","小学音乐教师","小学教育、音乐与舞蹈学类",2,"本科或师范类大专毕业","面向全省",null,"小学音乐学科专业素养","特岗教师"]
["循化县教育局",21216001,"循化县各高中","专业技术岗位","高中数学教师","数学类",8,"本科及以上学历","面向全省","年龄35周岁及以下，具有相应学段及以上教师资格证书，所学专业或所取得的教师资格证任教学科要与报考学科一致。临聘教师报考年龄可放宽到45周岁。","中学数学学科专业素养","公开招聘",null,{"$f":"EXACT(E126,AA126)","v":true},true,true,true,true,true,true,true,null,null,"循化县教育局","循化县各高中","专业技术岗位","高中数学教师","数学类",8,"本科及以上学历","面向全省","年龄35周岁及以下，具有相应学段及以上教师资格证书，所学专业或所取得的教师资格证任教学科要与报考学科一致。临聘教师报考年龄可放宽到45周岁。","中学数学学科专业素养","公开招聘"]
["循化县教育局",21216002,"循化县各高中","专业技术岗位","高中英语教师","外国语言文学类（英语）",7,"本科及以上学历","面向全省",null,"中学英语学科专业素养","公开招聘",null,{"$f":"EXACT(E127,AA127)","v":true},true,true,true,true,true,true,true,null,null,"循化县教育局","循化县各高中","专业技术岗位","高中英语教师","外国语言文学类（英语）",7,"本科及以上学历","面向全省",null,"中学英语学科专业素养","公开招聘"]
["循化县教育局",21216003,"循化县各高中","专业技术岗位","高中地理教师","地理科学类",3,"本科及以上学历","面向全省",null,"中学地理学科专业素养","公开招聘",null,{"$f":"EXACT(E128,AA128)","v":true},true,true,true,true,true,true,true,null,null,"循化县教育局","循化县各高中","专业技术岗位","高中地理教师","地理科学类",3,"本科及以上学历","面向全省",null,"中学地理学科专业素养","公开招聘"]
["循化县教育局",21216004,"循化县各高中","专业技术岗位","高中语文教师","中国语言文学类（不含中国少数民族语言文学）",6,"本科及以上学历","面向全省",null,"中学语文学科专业素养","公开招聘",null,{"$f":"EXACT(E129,AA129)","v":true},true,true,true,true,true,true,true,null,null,"循化县教育局","循化县各高中","专业技术岗位","高中语文教师","中国语言文学类（不含中国少数民族语言文学）",6,"本科及以上学历","面向全省",null,"中学语文学科专业素养","公开招聘"]
["循化县教育局",21216005,"循化县各高中","专业技术岗位","高中物理教师","物理学类",3,"本科及以上学历","面向全省",null,"中学物理学科专业素养","公开招聘",null,{"$f":"EXACT(E130,AA130)","v":true},true,true,true,true,true,true,true,null,null,"循化县教育局","循化县各高中","专业技术岗位","高中物理教师","物理学类",3,"本科及以上学历","面向全省",null,"中学物理学科专业素养","公开招聘"]
["循化县教育局",21216006,"循化县各高中","专业技术岗位","高中化学教师","化学类",5,"本科及以上学历","面向全省",null,"中学化学学科专业素养","公开招聘",null,{"$f":"EXACT(E131,AA131)","v":true},true,true,true,true,true,true,true,null,null,"循化县教育局","循化县各高中","专业技术岗位","高中化学教师","化学类",5,"本科及以上学历","面向全省",null,"中学化学学科专业素养","公开招聘"]
["循化县教育局",21216007,"循化县各高中","专业技术岗位","高中历史教师","历史学类",2,"本科及以上学历","面向全省",null,"中学历史学科专业素养","公开招聘",null,{"$f":"EXACT(E132,AA132)","v":true},true,true,true,true,true,true,true,null,null,"循化县教育局","循化县各高中","专业技术岗位","高中历史教师","历史学类",2,"本科及以上学历","面向全省",null,"中学历史学科专业素养","公开招聘"]
["循化县教育局",21216008,"循化县各高中","专业技术岗位","高中政治教师","哲学类、政治学类、马克思主义理论类",2,"本科及以上学历","面向全省",null,"中学政治学科专业素养","公开招聘",null,{"$f":"EXACT(E133,AA133)","v":true},true,true,true,true,true,true,true,null,null,"循化县教育局","循化县各高中","专业技术岗位","高中政治教师","哲学类、政治学类、马克思主义理论类",2,"本科及以上学历","面向全省",null,"中学政治学科专业素养","公开招聘"]
["循化县教育局",21216009,"循化县各高中","专业技术岗位","高中生物教师","生物科学类",5,"本科及以上学历","面向全省",null,"中学生物学科专业素养","公开招聘",null,{"$f":"EXACT(E134,AA134)","v":true},true,true,true,true,true,true,true,null,null,"循化县教育局","循化县各高中","专业技术岗位","高中生物教师","生物科学类",5,"本科及以上学历","面向全省",null,"中学生物学科专业素养","公开招聘"]
["循化县教育局",21216010,"循化县各高中","专业技术岗位","高中体育教师","体育学类",1,"本科及以上学历","面向全省",null,"中学体育学科专业素养","公开招聘",null,{"$f":"EXACT(E135,AA135)","v":true},true,true,true,true,true,true,true,null,null,"循化县教育局","循化县各高中","专业技术岗位","高中体育教师","体育学类",1,"本科及以上学历","面向全省",null,"中学体育学科专业素养","公开招聘"]
["循化县教育局",21216011,"循化县各高中","专业技术岗位","高中信息技术教师","计算机类",1,"本科及以上学历","面向全省","年龄35周岁及以下，具有相应学段及以上教师资格证书，所学专业或所取得的教师资格证任教学科要与报考学科一致。临聘教师报考年龄可放宽到45周岁。","中学信息技术学科专业素养","公开招聘",null,{"$f":"EXACT(E136,AA136)","v":true},true,true,true,true,true,true,true,null,null,"循化县教育局","循化县各高中","专业技术岗位","高中信息技术教师","计算机类",1,"本科及以上学历","面向全省","年龄35周岁及以下，具有相应学段及以上教师资格证书，所学专业或所取得的教师资格证任教学科要与报考学科一致。临聘教师报考年龄可放宽到45周岁。","中学信息技术学科专业素养","公开招聘"]
["循化县教育局",21216012,"循化县各乡镇中学","专业技术岗位","初中语文教师","中国语言文学类（不含中国少数民族语言文学）",1,"本科及以上学历","面向全省",null,"中学语文学科专业素养","公开招聘",null,{"$f":"EXACT(E137,AA137)","v":true},true,true,true,true,true,true,true,null,null,"循化县教育局","循化县各乡镇中学","专业技术岗位","初中语文教师","中国语言文学类（不含中国少数民族语言文学）",1,"本科及以上学历","面向全省",null,"中学语文学科专业素养","公开招聘"]
["循化县教育局",21216013,"循化县各乡镇中学","专业技术岗位","初中数学教师","数学类",2,"本科及以上学历","面向全省",null,"中学数学学科专业素养","公开招聘",null,{"$f":"EXACT(E138,AA138)","v":true},true,true,true,true,true,true,true,null,null,"循化县教育局","循化县各乡镇中学","专业技术岗位","初中数学教师","数学类",2,"本科及以上学历","面向全省",null,"中学数学学科专业素养","公开招聘"]
["循化县教育局",21216014,"循化县各乡镇中学","专业技术岗位","初中历史教师","历史学类",1,"本科及以上学历","面向全省",null,"中学历史学科专业素养","公开招聘",null,{"$f":"EXACT(E139,AA139)","v":true},true,true,true,true,true,true,true,null,null,"循化县教育局","循化县各乡镇中学","专业技术岗位","初中历史教师","历史学类",1,"本科及以上学历","面向全省",null,"中学历史学科专业素养","公开招聘"]
["循化县教育局",21216015,"循化县各乡镇中学","专业技术岗位","初中政治教师","哲学类、政治学类、马克思主义理论类",1,"本科及以上学历","面向全省",null,"中学政治学科专业素养","公开招聘",null,{"$f":"EXACT(E140,AA140)","v":true},true,true,true,true,true,true,true,null,null,"循化县教育局","循化县各乡镇中学","专业技术岗位","初中政治教师","哲学类、政治学类、马克思主义理论类",1,"本科及以上学历","面向全省",null,"中学政治学科专业素养","公开招聘"]
["循化县教育局",21216016,"循化县各乡镇中学","专业技术岗位","初中化学教师","化学类",1,"本科及以上学历","面向全省",null,"中学化学学科专业素养","公开招聘",null,{"$f":"EXACT(E141,AA141)","v":true},true,true,true,true,true,true,true,null,null,"循化县教育局","循化县各乡镇中学","专业技术岗位","初中化学教师","化学类",1,"本科及以上学历","面向全省",null,"中学化学学科专业素养","公开招聘"]
["循化县教育局",21216017,"循化县各乡镇中学","专业技术岗位","初中生物教师","生物科学类",1,"本科及以上学历","面向全省",null,"中学生物学科专业素养","公开招聘",null,{"$f":"EXACT(E142,AA142)","v":true},true,true,true,true,true,true,true,null,null,"循化县教育局","循化县各乡镇中学","专业技术岗位","初中生物教师","生物科学类",1,"本科及以上学历","面向全省",null,"中学生物学科专业素养","公开招聘"]
["循化县教育局",21216018,"循化县各乡镇中学","专业技术岗位","初中英语教师","外国语言文学类（英语）",1,"本科及以上学历","面向全省",null,"中学英语学科专业素养","公开招聘",null,{"$f":"EXACT(E143,AA143)","v":true},true,true,true,true,true,true,true,null,null,"循化县教育局","循化县各乡镇中学","专业技术岗位","初中英语教师","外国语言文学类（英语）",1,"本科及以上学历","面向全省",null,"中学英语学科专业素养","公开招聘"]
["循化县教育局",21216019,"循化县各乡镇中学","专业技术岗位","初中物理教师","物理学类",1,"本科及以上学历","面向全省",null,"中学物理学科专业素养","公开招聘",null,{"$f":"EXACT(E144,AA144)","v":true},true,true,true,true,true,true,true,null,null,"循化县教育局","循化县各乡镇中学","专业技术岗位","初中物理教师","物理学类",1,"本科及以上学历","面向全省",null,"中学物理学科专业素养","公开招聘"]
["循化县教育局",21216020,"循化县各乡镇中学","专业技术岗位","初中地理教师","地理科学类",1,"本科及以上学历","面向全省",null,"中学地理学科专业素养","公开招聘",null,{"$f":"EXACT(E145,AA145)","v":true},true,true,true,true,true,true,true,null,null,"循化县教育局","循化县各乡镇中学","专业技术岗位","初中地理教师","地理科学类",1,"本科及以上学历","面向全省",null,"中学地理学科专业素养","公开招聘"]
["循化县教育局",21216021,"循化县各乡镇中学","专业技术岗位","初中体育教师","体育学类",1,"本科及以上学历","面向全省",null,"中学体育学科专业素养","公开招聘",null,{"$f":"EXACT(E146,AA146)","v":true},true,true,true,true,true,true,true,null,null,"循化县教育局","循化县各乡镇中学","专业技术岗位","初中体育教师","体育学类",1,"本科及以上学历","面向全省",null,"中学体育学科专业素养","公开招聘"]
["循化县教育局",21216022,"循化循各乡镇小学","专业技术岗位","小学语文教师","小学教育、中国语言文学类（不含中国少数民族语言文学）",2,"大专及以上学历","面向全省",null,"小学语文学科专业素养","公开招聘",null,{"$f":"EXACT(E147,AA147)","v":true},true,true,true,true,true,true,true,null,null,"循化县教育局","循化循各乡镇小学","专业技术岗位","小学语文教师","小学教育、中国语言文学类（不含中国少数民族语言文学）",2,"大专及以上学历","面向全省",null,"小学语文学科专业素养","公开招聘"]
["循化县教育局",21216023,"循化循各乡镇小学","专业技术岗位","小学数学教师","小学教育、数学类",1,"大专及以上学历","面向全省",null,"小学数学学科专业素养","公开招聘",null,{"$f":"EXACT(E148,AA148)","v":true},true,true,true,true,true,true,true,null,null,"循化县教育局","循化循各乡镇小学","专业技术岗位","小学数学教师","小学教育、数学类",1,"大专及以上学历","面向全省",null,"小学数学学科专业素养","公开招聘"]
["循化县教育局",21216024,"循化循各乡镇小学","专业技术岗位","小学英语教师","小学教育、外国语言文学类（英语）",1,"大专及以上学历","面向全省",null,"小学英语学科专业素养","公开招聘",null,{"$f":"EXACT(E149,AA149)","v":true},true,true,true,true,true,true,true,null,null,"循化县教育局","循化循各乡镇小学","专业技术岗位","小学英语教师","小学教育、外国语言文学类（英语）",1,"大专及以上学历","面向全省",null,"小学英语学科专业素养","公开招聘"]
["循化县教育局",21216025,"循化循各乡镇小学","专业技术岗位","小学道德与法治教师","小学教育、哲学类、政治学类、马克思主义理论类",1,"大专及以上学历","面向全省",null,"小学道德与法治学科专业素养","公开招聘",null,{"$f":"EXACT(E150,AA150)","v":true},true,true,true,true,true,true,true,null,null,"循化县教育局","循化循各乡镇小学","专业技术岗位","小学道德与法治教师","小学教育、哲学类、政治学类、马克思主义理论类",1,"大专及以上学历","面向全省",null,"小学道德与法治学科专业素养","公开招聘"]
["循化县教育局",21216026,"循化县各乡镇中学","专业技术岗位","初中语文教师","中国语言文学类（不含中国少数民族语言文学）",2,"本科或师范类大专毕业","面向全省","年龄30周岁及以下,具有相应学段及以上教师资格证书，所学专业或所取得的教师资格证任教学科要与报考岗位学科一致。","中学语文学科专业素养","特岗教师",null,{"$f":"EXACT(E151,AA151)","v":true},true,true,true,true,true,true,true,null,null,"循化县教育局","循化县各乡镇中学","专业技术岗位","初中语文教师","中国语言文学类（不含中国少数民族语言文学）",2,"本科或师范类大专毕业","面向全省","年龄30周岁及以下,具有相应学段及以上教师资格证书，所学专业或所取得的教师资格证任教学科要与报考岗位学科一致。","中学语文学科专业素养","特岗教师"]
["循化县教育局",21216027,"循化县各乡镇中学","专业技术岗位","初中数学教师","数学类",3,"本科或师范类大专毕业","面向全省",null,"中学数学学科专业素养","特岗教师",null,{"$f":"EXACT(E152,AA152)","v":true},true,true,true,true,true,true,true,null,null,"循化县教育局","循化县各乡镇中学","专业技术岗位","初中数学教师","数学类",3,"本科或师范类大专毕业","面向全省",null,"中学数学学科专业素养","特岗教师"]
["循化县教育局",21216028,"循化县各乡镇中学","专业技术岗位","初中历史教师","历史学类",1,"本科或师范类大专毕业","面向全省",null,"中学历史学科专业素养","特岗教师",null,{"$f":"EXACT(E153,AA153)","v":true},true,true,true,true,true,true,true,null,null,"循化县教育局","循化县各乡镇中学","专业技术岗位","初中历史教师","历史学类",1,"本科或师范类大专毕业","面向全省",null,"中学历史学科专业素养","特岗教师"]
["循化县教育局",21216029,"循化县各乡镇中学","专业技术岗位","初中政治教师","哲学类、政治学类、马克思主义理论类",1,"本科或师范类大专毕业","面向全省",null,"中学政治学科专业素养","特岗教师",null,{"$f":"EXACT(E154,AA154)","v":true},true,true,true,true,true,true,true,null,null,"循化县教育局","循化县各乡镇中学","专业技术岗位","初中政治教师","哲学类、政治学类、马克思主义理论类",1,"本科或师范类大专毕业","面向全省",null,"中学政治学科专业素养","特岗教师"]
["循化县教育局",21216030,"循化县各乡镇中学","专业技术岗位","初中英语教师","外国语言文学类（英语）",2,"本科或师范类大专毕业","面向全省",null,"中学英语学科专业素养","特岗教师",null,{"$f":"EXACT(E155,AA155)","v":true},true,true,true,true,true,true,true,null,null,"循化县教育局","循化县各乡镇中学","专业技术岗位","初中英语教师","外国语言文学类（英语）",2,"本科或师范类大专毕业","面向全省",null,"中学英语学科专业素养","特岗教师"]
["循化县教育局",21216031,"循化县各乡镇中学","专业技术岗位","初中地理教师","地理科学类",1,"本科或师范类大专毕业","面向全省",null,"中学地理学科专业素养","特岗教师",null,{"$f":"EXACT(E156,AA156)","v":true},true,true,true,true,true,true,true,null,null,"循化县教育局","循化县各乡镇中学","专业技术岗位","初中地理教师","地理科学类",1,"本科或师范类大专毕业","面向全省",null,"中学地理学科专业素养","特岗教师"]
["循化县教育局",21216032,"循化循各乡镇小学","专业技术岗位","小学语文教师","小学教育、中国语言文学类（不含中国少数民族语言文学）",1,"本科或师范类大专毕业","面向全省",null,"小学语文学科专业素养","特岗教师",null,{"$f":"EXACT(E157,AA157)","v":true},true,true,true,true,true,true,true,null,null,"循化县教育局","循化循各乡镇小学","专业技术岗位","小学语文教师","小学教育、中国语言文学类（不含中国少数民族语言文学）",1,"本科或师范类大专毕业","面向全省",null,"小学语文学科专业素养","特岗教师"]
["循化县教育局",21216033,"循化循各乡镇小学","专业技术岗位","小学数学教师","小学教育、数学类",1,"本科或师范类大专毕业","面向全省",null,"小学数学学科专业素养","特岗教师",null,{"$f":"EXACT(E158,AA158)","v":true},true,true,true,true,true,true,true,null,null,"循化县教育局","循化循各乡镇小学","专业技术岗位","小学数学教师","小学教育、数学类",1,"本科或师范类大专毕业","面向全省",null,"小学数学学科专业素养","特岗教师"]
["循化县教育局",21216034,"循化循各乡镇小学","专业技术岗位","小学英语教师","小学教育、外国语言文学类（英语）",1,"本科或师范类大专毕业","面向全省",null,"小学英语学科专业素养","特岗教师",null,{"$f":"EXACT(E159,AA159)","v":true},true,true,true,true,true,true,true,null,null,"循化县教育局","循化循各乡镇小学","专业技术岗位","小学英语教师","小学教育、外国语言文学类（英语）",1,"本科或师范类大专毕业","面向全省",null,"小学英语学科专业素养","特岗教师"]
["循化县教育局",21216035,"循化循各乡镇小学","专业技术岗位","小学音乐教师","小学教育、音乐与舞蹈学类",1,"本科或师范类大专毕业","面向全省",null,"小学音乐学科专业素养","特岗教师",null,{"$f":"EXACT(E160,AA160)","v":true},true,true,true,true,true,true,true,null,null,"循化县教育局","循化循各乡镇小学","专业技术岗位","小学音乐教师","小学教育、音乐与舞蹈学类",1,"本科或师范类大专毕业","面向全省",null,"小学音乐学科专业素养","特岗教师"]
["循化县教育局",21216036,"循化循各乡镇小学","专业技术岗位","小学体育教师","小学教育、体育学类",1,"本科或师范类大专毕业","面向全省",null,"小学体育学科专业素养","特岗教师",null,{"$f":"EXACT(E161,AA161)","v":true},true,true,true,true,true,true,true,null,null,"循化县教育局","循化循各乡镇小学","专业技术岗位","小学体育教师","小学教育、体育学类",1,"本科或师范类大专毕业","面向全省",null,"小学体育学科专业素养","特岗教师"]
["面向大学生村官、志愿服务西部计划（含青南计划、基层青年专项）、“三支一扶”计划等三类基层服务项目生、大学生退役士兵",21217001,"乐都区各小学","专业技术岗位","小学数学教师","小学教育、数学类",2,"大专及以上学历","面向全省","年龄35周岁及以下，具有相应学段及以上教师资格证书，所学专业或所取得的教师资格证任教学科要与报考学科一致。","小学数学学科专业素养","定向岗位",null,{"$f":"EXACT(E162,AA162)","v":true},true,true,true,true,true,true,true,null,null,"面向大学生村官、志愿服务西部计划（含青南计划、基层青年专项）、“三支一扶”计划等三类基层服务项目生、大学生退役士兵","乐都区各小学","专业技术岗位","小学数学教师","小学教育、数学类",2,"大专及以上学历","面向全省","年龄35周岁及以下，具有相应学段及以上教师资格证书，所学专业或所取得的教师资格证任教学科要与报考学科一致。","小学数学学科专业素养","定向岗位"]
[null,21217002,"乐都区各小学","专业技术岗位","小学道德与法治教师","小学教育、哲学类、政治学类、马克思主义理论类",2,"大专及以上学历","面向全省",null,"小学道德与法治学科专业素养","定向岗位",null,{"$f":"EXACT(E163,AA163)","v":true},true,true,true,true,true,true,true,{"$nulls":3},"乐都区各小学","专业技术岗位","小学道德与法治教师","小学教育、哲学类、政治学类、马克思主义理论类",2,"大专及以上学历","面向全省",null,"小学道德与法治学科专业素养","定向岗位"]
[null,21217003,"平安区各小学","专业技术岗位","小学数学教师","小学教育、数学类",1,"大专及以上学历","面向全省",null,"小学数学学科专业素养","定向岗位",null,{"$f":"EXACT(E164,AA164)","v":true},true,true,true,true,true,true,true,{"$nulls":3},"平安区各小学","专业技术岗位","小学数学教师","小学教育、数学类",1,"大专及以上学历","面向全省",null,"小学数学学科专业素养","定向岗位"]
[null,21217004,"民和县各乡镇小学","专业技术岗位","小学语文教师","小学教育、中国语言文学类（不含中国少数民族语言文学）",1,"大专及以上学历","面向全省",null,"小学语文学科专业素养","定向岗位",null,{"$f":"EXACT(E165,AA165)","v":true},true,true,true,true,true,true,true,{"$nulls":3},"民和县各乡镇小学","专业技术岗位","小学语文教师","小学教育、中国语言文学类（不含中国少数民族语言文学）",1,"大专及以上学历","面向全省",null,"小学语文学科专业素养","定向岗位"]
[null,21217005,"民和县各乡镇小学","专业技术岗位","小学数学教师","小学教育、数学类",2,"大专及以上学历","面向全省",null,"小学数学学科专业素养","定向岗位",null,{"$f":"EXACT(E166,AA166)","v":true},true,true,true,true,true,true,true,{"$nulls":3},"民和县各乡镇小学","专业技术岗位","小学数学教师","小学教育、数学类",2,"大专及以上学历","面向全省",null,"小学数学学科专业素养","定向岗位"]
["面向大学生村官、志愿服务西部计划（含青南计划、基层青年专项）、“三支一扶”计划等三类基层服务项目生、大学生退役士兵",21217006,"互助县县城各小学","专业技术岗位","小学语文教师","小学教育、中国语言文学类（不含中国少数民族语言文学）",1,"大专及以上学历","面向全省","年龄35周岁及以下，具有相应学段及以上教师资格证书，所学专业或所取得的教师资格证任教学科要与报考学科一致。","小学语文学科专业素养","定向岗位",null,{"$f":"EXACT(E167,AA167)","v":true},true,true,true,true,true,true,true,{"$nulls":3},"互助县县城各小学","专业技术岗位","小学语文教师","小学教育、中国语言文学类（不含中国少数民族语言文学）",1,"大专及以上学历","面向全省","年龄35周岁及以下，具有相应学段及以上教师资格证书，所学专业或所取得的教师资格证任教学科要与报考学科一致。","小学语文学科专业素养","定向岗位"]
[null,21217007,"互助县县城各小学","专业技术岗位","小学数学教师","小学教育、数学类",1,"大专及以上学历","面向全省",null,"小学数学学科专业素养","定向岗位",null,{"$f":"EXACT(E168,AA168)","v":true},true,true,true,true,true,true,true,{"$nulls":3},"互助县县城各小学","专业技术岗位","小学数学教师","小学教育、数学类",1,"大专及以上学历","面向全省",null,"小学数学学科专业素养","定向岗位"]
[null,21217008,"互助县县城各小学","专业技术岗位","小学英语教师","小学教育、外国语言文学类（英语）",1,"大专及以上学历","面向全省",null,"小学英语学科专业素养","定向岗位",null,{"$f":"EXACT(E169,AA169)","v":true},true,true,true,true,true,true,true,{"$nulls":3},"互助县县城各小学","专业技术岗位","小学英语教师","小学教育、外国语言文学类（英语）",1,"大专及以上学历","面向全省",null,"小学英语学科专业素养","定向岗位"]
[null,21217009,"化隆县各乡镇小学","专业技术岗位","小学语文教师","小学教育、中国语言文学类（不含中国少数民族语言文学）",4,"大专及以上学历","面向全省",null,"小学语文学科专业素养","定向岗位",null,{"$f":"EXACT(E170,AA170)","v":true},true,true,true,true,true,true,true,{"$nulls":3},"化隆县各乡镇小学","专业技术岗位","小学语文教师","小学教育、中国语言文学类（不含中国少数民族语言文学）",4,"大专及以上学历","面向全省",null,"小学语文学科专业素养","定向岗位"]
[null,21217010,"化隆县各乡镇小学","专业技术岗位","小学数学教师","小学教育、数学类",4,"大专及以上学历","面向全省",null,"小学数学学科专业素养","定向岗位",null,{"$f":"EXACT(E171,AA171)","v":true},true,true,true,true,true,true,true,{"$nulls":3},"化隆县各乡镇小学","专业技术岗位","小学数学教师","小学教育、数学类",4,"大专及以上学历","面向全省",null,"小学数学学科专业素养","定向岗位"]
[null,21217011,"化隆县各乡镇小学","专业技术岗位","小学音乐教师","小学教育、音乐与舞蹈学类",1,"大专及以上学历","面向全省",null,"小学音乐学科专业素养","定向岗位",null,{"$f":"EXACT(E172,AA172)","v":true},true,true,true,true,true,true,true,{"$nulls":3},"化隆县各乡镇小学","专业技术岗位","小学音乐教师","小学教育、音乐与舞蹈学类",1,"大专及以上学历","面向全省",null,"小学音乐学科专业素养","定向岗位"]
[null,21217012,"化隆县各乡镇小学","专业技术岗位","小学体育教师","小学教育、体育学类",1,"大专及以上学历","面向全省",null,"小学体育学科专业素养","定向岗位",null,{"$f":"EXACT(E173,AA173)","v":true},true,true,true,true,true,true,true,{"$nulls":3},"化隆县各乡镇小学","专业技术岗位","小学体育教师","小学教育、体育学类",1,"大专及以上学历","面向全省",null,"小学体育学科专业素养","定向岗位"]
[null,21217013,"化隆县各乡镇小学","专业技术岗位","小学美术教师","小学教育、美术学类",1,"大专及以上学历","面向全省",null,"小学美术学科专业素养","定向岗位",null,{"$f":"EXACT(E174,AA174)","v":true},true,true,true,true,true,true,true,{"$nulls":3},"化隆县各乡镇小学","专业技术岗位","小学美术教师","小学教育、美术学类",1,"大专及以上学历","面向全省",null,"小学美术学科专业素养","定向岗位"]
[null,21217014,"化隆县各乡镇小学","专业技术岗位","小学科学教师","教育学类（小学教育、科学教育）、物理学类、力学类，化学类，生物科学类，地理科学类",1,"大专及以上学历","面向全省",null,"小学科学学科专业素养","定向岗位",null,{"$f":"EXACT(E175,AA175)","v":true},true,true,true,true,true,true,true,{"$nulls":3},"化隆县各乡镇小学","专业技术岗位","小学科学教师","教育学类（小学教育、科学教育）、物理学类、力学类，化学类，生物科学类，地理科学类",1,"大专及以上学历","面向全省",null,"小学科学学科专业素养","定向岗位"]
[null,21217015,"化隆县各乡镇小学","专业技术岗位","小学英语教师","小学教育、外国语言文学类（英语）",2,"大专及以上学历","面向全省",null,"小学英语学科专业素养","定向岗位",null,{"$f":"EXACT(E176,AA176)","v":true},true,true,true,true,true,true,true,{"$nulls":3},"化隆县各乡镇小学","专业技术岗位","小学英语教师","小学教育、外国语言文学类（英语）",2,"大专及以上学历","面向全省",null,"小学英语学科专业素养","定向岗位"]
[null,21217016,"循化县各高中","专业技术岗位","高中体育教师","体育学类",1,"本科及以上学历","面向全省",null,"中学体育学科专业素养","定向岗位",null,{"$f":"EXACT(E177,AA177)","v":true},true,true,true,true,true,true,true,{"$nulls":3},"循化县各高中","专业技术岗位","高中体育教师","体育学类",1,"本科及以上学历","面向全省",null,"中学体育学科专业素养","定向岗位"]
[null,21217017,"循化县各高中","专业技术岗位","高中信息技术教师","计算机类",1,"本科及以上学历","面向全省",null,"中学信息技术学科专业素养","定向岗位",null,{"$f":"EXACT(E178,AA178)","v":true},true,true,true,true,true,true,true,{"$nulls":3},"循化县各高中","专业技术岗位","高中信息技术教师","计算机类",1,"本科及以上学历","面向全省",null,"中学信息技术学科专业素养","定向岗位"]
[null,21217018,"循化县各乡镇中学","专业技术岗位","初中体育教师","体育学类",1,"本科及以上学历","面向全省",null,"中学体育学科专业素养","定向岗位",null,{"$f":"EXACT(E179,AA179)","v":true},true,true,true,true,true,true,true,{"$nulls":3},"循化县各乡镇中学","专业技术岗位","初中体育教师","体育学类",1,"本科及以上学历","面向全省",null,"中学体育学科专业素养","定向岗位"]
[null,21217019,"循化循各乡镇小学","专业技术岗位","小学语文教师","小学教育、中国语言文学类（不含中国少数民族语言文学）",1,"大专及以上学历","面向全省",null,"小学语文学科专业素养","定向岗位",null,{"$f":"EXACT(E180,AA180)","v":true},true,true,true,true,true,true,true,{"$nulls":3},"循化循各乡镇小学","专业技术岗位","小学语文教师","小学教育、中国语言文学类（不含中国少数民族语言文学）",1,"大专及以上学历","面向全省",null,"小学语文学科专业素养","定向岗位"]
[null,21217020,"循化循各乡镇小学","专业技术岗位","小学数学教师","小学教育、数学类",1,"大专及以上学历","面向全省",null,"小学数学学科专业素养","定向岗位",null,{"$f":"EXACT(E181,AA181)","v":true},true,true,true,true,true,true,true,{"$nulls":3},"循化循各乡镇小学","专业技术岗位","小学数学教师","小学教育、数学类",1,"大专及以上学历","面向全省",null,"小学数学学科专业素养","定向岗位"]
[null,21217021,"循化循各乡镇小学","专业技术岗位","小学道德与法治教师","小学教育、哲学类、政治学类、马克思主义理论类",1,"大专及以上学历","面向全省",null,"小学道德与法治学科专业素养","定向岗位",null,{"$f":"EXACT(E182,AA182)","v":true},true,true,true,true,true,true,true,{"$nulls":3},"循化循各乡镇小学","专业技术岗位","小学道德与法治教师","小学教育、哲学类、政治学类、马克思主义理论类",1,"大专及以上学历","面向全省",null,"小学道德与法治学科专业素养","定向岗位"]